Workbook

Sheet Липецк
A2: Расчёт пропускной способности Центров питания филиала ОАО "МРСК Центра" Липецкэнерго по итогам зимнего замера максимума нагрузки 2011 г.
K3: таблица 1
A4: №п/п | B4: Наименование объекта центра питания, класс напряжения | C4: Текущий дефицит | M4: Примечание | N4: cosφ | P4: №п/п | Q4: Наименование объекта центра питания, класс напряжения | R4: Ожидаемый дефицит /профицит | AB4: Примечание
C5: Установленная мощность трансформаторов Sуст. с указанием их количества, шт/ МВА | E5: Суммарная полная мощность ЦП по результатам замеров максимума нагрузки Sмах , МВА | F5: Полная мощность, перераспределяемая в соответствии с ПТЭ, МВА за время | H5: Полная мощность с учётом перераспределения, МВА | I5: Ограничивающие факторы, МВА | J5: Допустимая нагрузка расчётная в режиме n-1, МВА | K5: Дефицит/профицит ЦП, МВА | R5: Установленная мощность трансформаторов Sуст. с указанием их количества в перспективе при условии выполнения ТУ на ТП или других мероприятий по реконструкции ЦП шт/ МВА | S5: Дополнительная мощность по выданным ТУ на ТП, МВА | T5: Ожидаемая нагрузка ЦП, МВА | U5: Полная перераспределяемая мощность в перспективе с учетом выполнения мероприятий ТУ или других мероприятий по реконструкции сети инвестпрограмм и др. | W5: Полная мощность с учётом перераспределения, МВА | X5: Ограничивающие факторы, МВА | Y5: Допустимая нагрузка расчётная в режиме n-1, МВА | Z5: Дефицит /профицит ЦП, МВА
F6: МВА | G6: Мин. | U6: МВА | V6: Мин.
A7: 1 | B7: 2 | C7: 3 | E7: 4 | F7: 5 | G7: 6 | H7: 7 | I7: 8 | J7: 9 | K7: 10 | L7: 11 | M7: 12 | P7: 1 | Q7: 2 | R7: 3 | S7: 4 | T7: 5 | U7: 6 | V7: 7 | W7: 8 | X7: 9 | Y7: 10 | Z7: 11 | AA7: 12 | AB7: 13
A8: Однотрансформаторные ПС | P8: Однотрансформаторные ПС
A9: 1 | B9: ПС 110/10кВ Лев Толстой | C9: 10 | D9: 10 | E9: 2 | F9: 1.8 | G9: 30 | H9: =E9-F9 -> 0.2 | I9: 0 | J9: =F9 -> 1.8 | K9: =J9-E9 -> -0.2 | L9: =K9 -> -0.2 | M9: закрыт | N9: 0.98 | P9: 1 | Q9: ПС 110/10кВ Лев Толстой | R9: 10 | S9: 0.801 | T9: =S9+E9 -> 2.801 | U9: 1.8 | V9: 30 | W9: =T9-U9 -> 1.001 | X9: 0 | Y9: =U9 -> 1.8 | Z9: =Y9-T9 -> -1.001 | AA9: =Z9 -> -1.001 | AB9: закрыт
A10: 2 | B10: ПС 110/10 кВ Двуречки | C10: 6.3 | D10: 6.3 | E10: 1.6 | F10: 0.1 | G10: 70 | H10: 1.5 | I10: 0 | J10: =F10 -> 0.1 | K10: -1.5 | L10: =K10 -> -1.5 | M10: закрыт | N10: 0.95 | P10: 2 | Q10: ПС 110/10 кВ Двуречки | R10: 6.3 | S10: 0.898 | T10: 2.498 | U10: 0.1 | V10: 70 | W10: =T10-U10 -> 2.398 | X10: 0 | Y10: =U10 -> 0.1 | Z10: =Y10-T10 -> -2.398 | AA10: =Z10 -> -2.398 | AB10: закрыт
A11: 3 | B11: ПС 35/10 кВ Веселое | C11: 2.5 | D11: 2.5 | E11: 0.107952 | F11: 0.07 | G11: 100 | H11: 0.037952 | I11: 0 | J11: 0.07 | K11: -0.037952 | L11: -0.037952 | M11: закрыт | N11: 0.87 | P11: 3 | Q11: ПС 35/10 кВ Веселое | R11: 2.5 | S11: 0.026 | T11: 0.133952 | U11: 0.07 | V11: 100 | W11: 0.063952 | X11: 0 | Y11: 0.07 | Z11: -0.063952 | AA11: -0.063952 | AB11: закрыт
A12: 4 | B12: ПС 35/10 кВ Кр.Пальна | C12: 3.2 | D12: 3.2 | E12: 0.881608 | F12: 0.11 | G12: 180 | H12: 0.771608 | I12: 0 | J12: 0.11 | K12: -0.771608 | L12: -0.771608 | M12: закрыт | N12: 0.92 | P12: 4 | Q12: ПС 35/10 кВ Кр.Пальна | R12: 3.2 | S12: 0.519 | T12: 1.400608 | U12: 0.11 | V12: 180 | W12: 1.290608 | X12: 0 | Y12: 0.11 | Z12: -1.290608 | AA12: -1.290608 | AB12: закрыт
A13: 5 | B13: ПС 35/10 кВ Каменка | C13: 2.5 | D13: 2.5 | E13: 0.817425 | F13: 0 | G13: 0 | H13: 0.817425 | I13: 0 | J13: 0 | K13: -0.817425 | L13: -0.817425 | M13: закрыт | N13: 0.94 | P13: 5 | Q13: ПС 35/10 кВ Каменка | R13: 2.5 | S13: 0.503 | T13: 1.320425 | U13: 0 | V13: 0 | W13: 1.320425 | X13: 0 | Y13: 0 | Z13: -1.320425 | AA13: -1.320425 | AB13: закрыт
A14: 6 | B14: ПС 35/10 кВ Красотыновка | C14: 2.5 | D14: 2.5 | E14: 0.47229 | F14: 0.29 | G14: 60 | H14: 0.18229 | I14: 0 | J14: 0.29 | K14: -0.18229 | L14: -0.18229 | M14: закрыт | N14: 0.92 | P14: 6 | Q14: ПС 35/10 кВ Красотыновка | R14: 2.5 | T14: 0.47229 | U14: 0.29 | V14: 60 | W14: 0.18229 | X14: 0 | Y14: 0.29 | Z14: -0.18229 | AA14: -0.18229 | AB14: закрыт
A15: 7 | B15: ПС 35/10 кВ Озёрки | C15: 2.5 | D15: 2.5 | E15: 0.110028 | F15: 0 | G15: 0 | H15: 0.110028 | I15: 0 | J15: 0 | K15: -0.110028 | L15: -0.110028 | M15: закрыт | N15: 0.79 | P15: 7 | Q15: ПС 35/10 кВ Озёрки | R15: 2.5 | T15: 0.110028 | U15: 0 | V15: 0 | W15: 0.110028 | X15: 0 | Y15: 0 | Z15: -0.110028 | AA15: -0.110028 | AB15: закрыт
A16: 8 | B16: ПС 35/10 кВ Панкратовка | C16: 2.5 | D16: 2.5 | E16: 0.50862 | F16: 0.05 | G16: 90 | H16: 0.45862 | I16: 0 | J16: 0.05 | K16: -0.45862 | L16: -0.45862 | M16: закрыт | N16: 0.86 | P16: 8 | Q16: ПС 35/10 кВ Панкратовка | R16: 2.5 | S16: 0.015 | T16: 0.52362 | U16: 0.05 | V16: 90 | W16: 0.47362 | X16: 0 | Y16: 0.05 | Z16: -0.47362 | AA16: -0.47362 | AB16: закрыт
A17: 9 | B17: ПС 35/10 кВ Преображенье | C17: 2.5 | D17: 2.5 | E17: 0.414854 | F17: 0 | G17: 0 | H17: 0.414854 | I17: 0 | J17: 0 | K17: -0.414854 | L17: -0.414854 | M17: закрыт | N17: 0.87 | P17: 9 | Q17: ПС 35/10 кВ Преображенье | R17: 2.5 | S17: 0.038 | T17: 0.452854 | U17: 0 | V17: 0 | W17: 0.452854 | X17: 0 | Y17: 0 | Z17: -0.452854 | AA17: -0.452854 | AB17: закрыт
A18: 10 | B18: ПС 35/10 кВ Яковлево | C18: 2.5 | D18: 2.5 | E18: 0.810822422 | F18: 0 | G18: 0 | H18: 0.810822422 | I18: 0 | J18: 0 | K18: -0.810822422 | L18: -0.810822422 | M18: закрыт | N18: 0.9 | P18: 10 | Q18: ПС 35/10 кВ Яковлево | R18: 2.5 | S18: 0.268 | T18: 1.078822422 | U18: 0 | V18: 0 | W18: 1.078822422 | X18: 0 | Y18: 0 | Z18: -1.078822422 | AA18: -1.078822422 | AB18: закрыт
A19: 11 | B19: ПС 35/10 кВ Первомайская | C19: 2.5 | D19: 2.5 | E19: 0.8363636364 | F19: 0.3 | G19: 60 | H19: =E19-F19 -> 0.5363636364 | I19: 0 | J19: 0.3 | K19: =J19-E19 -> -0.5363636364 | L19: -0.5363636364 | M19: закрыт | N19: 0.88 | P19: 11 | Q19: ПС 35/10 кВ Первомайская | R19: 2.5 | S19: 0.028 | T19: =S19+E19 -> 0.8643636364 | U19: 0.3 | V19: 60 | W19: 0.5643636364 | X19: 0 | Y19: 0.3 | Z19: -0.5643636364 | AA19: -0.5643636364 | AB19: закрыт
A20: 12 | B20: ПС 35/10 кВ Каменная Лубна | C20: 2.5 | D20: 2.5 | E20: 0.9454545455 | F20: 0.9 | G20: 90 | H20: 0.04545454545 | I20: 0 | J20: 0.9 | K20: -0.04545454545 | L20: -0.04545454545 | M20: закрыт | N20: 0.96 | P20: 12 | Q20: ПС 35/10 кВ Каменная Лубна | R20: 2.5 | S20: 0.062 | T20: 1.007454545 | U20: 0.9 | V20: 90 | W20: 0.1074545455 | X20: 0 | Y20: 0.9 | Z20: -0.1074545455 | AA20: -0.1074545455 | AB20: закрыт
A21: 13 | B21: ПС 35/10 кВ Знаменка | C21: 2.5 | D21: 2.5 | E21: 0.5454545455 | F21: 0 | G21: 0 | H21: 0.5454545455 | I21: 0 | J21: 0 | K21: -0.5454545455 | L21: -0.5454545455 | M21: закрыт | N21: 0.93 | P21: 13 | Q21: ПС 35/10 кВ Знаменка | R21: 2.5 | T21: 0.5454545455 | U21: 0 | V21: 0 | W21: 0.5454545455 | X21: 0 | Y21: 0 | Z21: -0.5454545455 | AA21: -0.5454545455 | AB21: закрыт
A22: 14 | B22: ПС 35/10 кВ Пиково | C22: 2.5 | D22: 2.5 | E22: 0.5090909091 | F22: 0.5 | G22: 120 | H22: 0.009090909091 | I22: 0 | J22: 0.5 | K22: -0.009090909091 | L22: -0.009090909091 | M22: закрыт | N22: 0.88 | P22: 14 | Q22: ПС 35/10 кВ Пиково | R22: 2.5 | S22: 0.027 | T22: 0.5360909091 | U22: 0.5 | V22: 120 | W22: 0.03609090909 | X22: 0 | Y22: 0.5 | Z22: -0.03609090909 | AA22: -0.03609090909 | AB22: закрыт
A23: 15 | B23: ПС 35/10 кВ Никольское | C23: 4 | D23: 4 | E23: 0.2727272727 | F23: 0.8 | G23: 120 | H23: -0.5272727273 | I23: 0 | J23: 0.8 | K23: 0.5272727273 | L23: 0.5272727273 | M23: открыт | N23: 0.97 | P23: 15 | Q23: ПС 35/10 кВ Никольское | R23: 4 | S23: 0.006 | T23: 0.2787272727 | U23: 0.8 | V23: 120 | W23: -0.5212727273 | X23: 0 | Y23: 0.8 | Z23: 0.5212727273 | AA23: 0.5212727273 | AB23: открыт
A24: 16 | B24: ПС 35/10 кВ Песковатка | C24: 1.6 | D24: 1.6 | E24: 0.52 | F24: 0.13 | G24: 70 | H24: 0.39 | I24: 0 | J24: 0.13 | K24: -0.39 | L24: -0.39 | M24: закрыт | N24: 0.95 | P24: 16 | Q24: ПС 35/10 кВ Песковатка | R24: 1.6 | T24: 0.52 | U24: 0.13 | V24: 70 | W24: 0.39 | X24: 0 | Y24: 0.13 | Z24: -0.39 | AA24: -0.39 | AB24: закрыт
A25: 17 | B25: ПС 35/6 кВ Дружба | C25: 5.6 | D25: 5.6 | E25: КРУНН-6кВ не наши | P25: 17 | Q25: ПС 35/6 кВ Дружба | R25: 5.6 | T25: =S25 -> 0
A26: 18 | B26: ПС 35/10 кВ СОМ | C26: 1.6 | D26: 1.6 | E26: 0.173 | F26: 0 | G26: 0 | H26: =E26-F26 -> 0.173 | I26: 0 | J26: 0 | K26: =J26-E26 -> -0.173 | L26: -0.173 | M26: закрыт | N26: 0.85 | P26: 18 | Q26: ПС 35/10 кВ СОМ | R26: 1.6 | T26: =S26+E26 -> 0.173 | U26: 0 | V26: 0 | W26: 0.173 | X26: 0 | Y26: 0 | Z26: =Y26-T26 -> -0.173 | AA26: =Z26 -> -0.173 | AB26: закрыт
A27: 19 | B27: ПС 35/6 кВ Новониколаевка | C27: 4 | D27: 4 | E27: =((82*6.2)/1000)*1.73 -> 0.879532 | F27: 0 | G27: 0 | H27: 0.879532 | I27: 0 | J27: 0 | K27: -0.879532 | L27: -0.879532 | M27: закрыт | N27: 0.944 | P27: 19 | Q27: ПС 35/6 кВ Новониколаевка | R27: 4 | S27: 0.015 | T27: 0.894532 | U27: 0 | V27: 0 | W27: 0.894532 | X27: 0 | Y27: 0 | Z27: -0.894532 | AA27: -0.894532 | AB27: закрыт
A28: 20 | B28: ПС 35/10 кВ Синдякино | C28: 2.5 | D28: 2.5 | E28: =((12*10.6)/1000)*1.73 -> 0.220056 | F28: 0 | G28: 0 | H28: 0.220056 | I28: 0 | J28: 0 | K28: -0.220056 | L28: -0.220056 | M28: закрыт | N28: 0.89 | P28: 20 | Q28: ПС 35/10 кВ Синдякино | R28: 2.5 | S28: 0.05 | T28: 0.270056 | U28: 0 | V28: 0 | W28: 0.270056 | X28: 0 | Y28: 0 | Z28: -0.270056 | AA28: -0.270056 | AB28: закрыт
A29: 21 | B29: ПС 35/10 кВ Курино | C29: 2.5 | D29: 2.5 | E29: =((25*10.6)/1000)*1.73 -> 0.45845 | F29: 0.09 | G29: 40 | H29: 0.36845 | I29: 0 | J29: 0.09 | K29: -0.36845 | L29: -0.36845 | M29: закрыт | N29: 0.901 | P29: 21 | Q29: ПС 35/10 кВ Курино | R29: 2.5 | S29: 0.816 | T29: 1.27445 | U29: 0.09 | V29: 40 | W29: 1.18445 | X29: 0 | Y29: 0.09 | Z29: -1.18445 | AA29: -1.18445 | AB29: закрыт
A30: 22 | B30: ПС 35/10 кВ Новодубовое | C30: 2.5 | D30: 2.5 | E30: =((58*10.5)/1000)*1.73 -> 1.05357 | F30: 0 | G30: 0 | H30: 1.05357 | I30: 0 | J30: 0 | K30: -1.05357 | L30: -1.05357 | M30: закрыт | N30: 0.87 | P30: 22 | Q30: ПС 35/10 кВ Новодубовое | R30: 2.5 | T30: 1.05357 | U30: 0 | V30: 0 | W30: 1.05357 | X30: 0 | Y30: 0 | Z30: -1.05357 | AA30: -1.05357 | AB30: закрыт
A31: 23 | B31: ПС 35/10 кВ Березовка | C31: 2.5 | D31: 2.5 | E31: 0 | F31: 0 | G31: 0 | H31: 0 | I31: 0 | J31: 0 | K31: 0 | L31: 0 | P31: 23 | Q31: ПС 35/10 кВ Березовка | R31: 2.5 | T31: 0 | U31: 0 | V31: 0 | W31: 0 | X31: 0 | Y31: 0 | Z31: 0 | AA31: 0 | AB31: закрыт
A32: 24 | B32: ПС 35/6 кВ Карьер | C32: 4 | D32: 4 | E32: 0.00865 | N32: 0.99 | P32: 24 | Q32: ПС 35/6 кВ Карьер | R32: 4 | T32: 0.00865
A33: 25 | B33: ПС 110/35/10 кВ Чаплыгин | C33: 6.3 | D33: 6.3 | E33: 3.945454545 | F33: 2.5 | G33: 120 | H33: =E33-F33 -> 1.445454545 | I33: 0 | J33: =F33 -> 2.5 | K33: =J33-E33 -> -1.445454545 | L33: =K33 -> -1.445454545 | M33: закрыт | N33: 0.84 | P33: 25 | Q33: ПС 110/35/10 кВ Чаплыгин | R33: 6.3 | S33: 0.611 | T33: 4.556454545 | U33: 2.5 | V33: 120 | W33: =T33-U33 -> 2.056454545 | X33: 0 | Y33: =U33 -> 2.5 | Z33: =Y33-T33 -> -2.056454545 | AA33: =Z33 -> -2.056454545 | AB33: закрыт
A34: Двух- и более трансформаторные ПС (на два уровня напряжения) | P34: Двух- и более трансформаторные ПС (на два уровня напряжения)
A35: 26 | B35: ПС 110/6 кВ Агрегатная | C35: 16+16 | D35: 32 | E35: 13.30146997 | F35: 0 | G35: 0 | H35: =E35-F35 -> 13.30146997 | I35: 0 | J35: =16*1.05 -> 16.8 | K35: =J35-I35-H35 -> 3.498530027 | L35: =K35 -> 3.498530027 | M35: открыт | N35: 0.93 | P35: 26 | Q35: ПС 110/6 кВ Агрегатная | R35: 16+16 | S35: 1.499 | T35: =S35+E35 -> 14.80046997 | U35: 0 | V35: 0 | W35: =T35-U35 -> 14.80046997 | X35: 0 | Y35: 16.8 | Z35: =Y35-X35-W35 -> 1.999530027 | AA35: =Z35 -> 1.999530027 | AB35: открыт
A36: 27 | B36: ПС 110/6 кВ Западная | C36: 40+40 | D36: 80 | E36: 17.66637256 | F36: 0 | G36: 0 | H36: 17.66637256 | I36: 0 | J36: =40*1.05 -> 42 | K36: 24.33362744 | L36: 24.33362744 | M36: открыт | N36: 0.89 | P36: 27 | Q36: ПС 110/6 кВ Западная | R36: 40+40 | S36: 4.153 | T36: 21.81937256 | U36: 0 | V36: 0 | W36: =T36-U36 -> 21.81937256 | X36: 0 | Y36: 42 | Z36: =Y36-X36-W36 -> 20.18062744 | AA36: =Z36 -> 20.18062744 | AB36: открыт
A37: 28 | B37: ПС 110/10 кВ Кашары | C37: 2,5+6,3 | D37: 8.8 | E37: 1.785864497 | F37: 0.433 | G37: 60 | H37: 1.352864497 | I37: 0 | J37: =2.5*1.05 -> 2.625 | K37: 1.272135503 | L37: 1.272135503 | M37: открыт | N37: 0.66 | P37: 28 | Q37: ПС 110/10 кВ Кашары | R37: 2,5+6,3 | S37: 1.298 | T37: 3.083864497 | U37: 0.433 | V37: 60 | W37: 2.650864497 | X37: 0 | Y37: 2.625 | Z37: -0.02586449654 | AA37: -0.02586449654 | AB37: закрыт
A38: 29 | B38: ПС 110/10кВ Тербунский гончар | C38: 25+25 | D38: =25+25 -> 50 | E38: 0 | F38: 0 | G38: 0 | H38: 0 | I38: 0 | J38: =25*1.05 -> 26.25 | K38: =J38-I38-H38 -> 26.25 | L38: =K38 -> 26.25 | M38: открыт | P38: 29 | Q38: ПС 110/10кВ Тербунский гончар | R38: 25+25 | S38: 13.15 | T38: =S38+E38 -> 13.15 | U38: 0 | V38: 0 | W38: =T38-U38 -> 13.15 | X38: 0 | Y38: 26.25 | Z38: =Y38-X38-W38 -> 13.1 | AA38: =Z38 -> 13.1
A39: 30 | B39: ПС 110/6 кВ Табак | C39: 16+16 | D39: 32 | E39: 7.832294859 | F39: 3.2 | G39: 20 | H39: 4.632294859 | I39: 0 | J39: =16*1.05 -> 16.8 | K39: 12.16770514 | L39: 12.16770514 | M39: открыт | N39: 0.96 | P39: 30 | Q39: ПС 110/6 кВ Табак | R39: 16+16 | S39: 0.125 | T39: 7.957294859 | U39: 3.2 | V39: 20 | W39: 4.757294859 | X39: 0 | Y39: 16.8 | Z39: 12.04270514 | AA39: 12.04270514 | AB39: открыт
A40: 31 | B40: ПС 110/10 кВ Лукошкино | C40: 10+2,5 | D40: 12.5 | E40: 0.6510326967 | F40: 0 | G40: 0 | H40: 0.6510326967 | I40: 0 | J40: =2.5*1.05 -> 2.625 | K40: 1.973967303 | L40: 1.973967303 | M40: открыт | N40: 0.95 | P40: 31 | Q40: ПС 110/10 кВ Лукошкино | R40: 10+2,5 | S40: 0.063 | T40: 0.7140326967 | U40: 0 | V40: 0 | W40: 0.7140326967 | X40: 0 | Y40: 2.625 | Z40: 1.910967303 | AA40: 1.910967303 | AB40: открыт
A41: 32 | B41: ПС 110/10кВ Нива | C41: 10+10 | D41: 20 | E41: 5.09 | F41: 3 | G41: 120 | H41: 2.09 | I41: 0 | J41: =10*1.05 -> 10.5 | K41: 8.41 | L41: 8.41 | M41: открыт | N41: 0.91 | P41: 32 | Q41: ПС 110/10кВ Нива | R41: 10+10 | S41: 0.418 | T41: 5.508 | U41: 3 | V41: 120 | W41: 2.508 | X41: 0 | Y41: 10.5 | Z41: 7.992 | AA41: 7.992 | AB41: открыт
A42: 33 | B42: ПС 110/10 кВ Ольховец | C42: 2,5+2,5 | D42: 5 | E42: 1.2 | F42: 1 | G42: 90 | H42: 0.2 | I42: 0 | J42: =2.5*1.05 -> 2.625 | K42: 2.425 | L42: 2.425 | M42: открыт | N42: 0.89 | P42: 33 | Q42: ПС 110/10 кВ Ольховец | R42: 2,5+2,5 | S42: 0.166 | T42: 1.366 | U42: 1 | V42: 90 | W42: 0.366 | X42: 0 | Y42: 2.625 | Z42: 2.259 | AA42: 2.259 | AB42: открыт
A43: 34 | B43: ПС 110/10 кВ Куймань | C43: 2,5+2,5 | D43: 5 | E43: 0.7272727273 | F43: 1 | G43: 90 | H43: -0.2727272727 | I43: 0 | J43: =2.5*1.05 -> 2.625 | K43: 2.897727273 | L43: 2.897727273 | M43: * | N43: 0.93 | P43: 34 | Q43: ПС 110/10 кВ Куймань | R43: 2,5+2,5 | S43: 1.635 | T43: 2.362272727 | U43: 1 | V43: 90 | W43: 1.362272727 | X43: 0 | Y43: 2.625 | Z43: 1.262727273 | AA43: 1.262727273 | AB43: открыт
A44: 35 | B44: ПС 110/10 кВ Лутошкино | C44: 2,5+2,5 | D44: 5 | E44: 0.2909090909 | F44: 0.4 | G44: 60 | H44: -0.1090909091 | I44: 0 | J44: =2.5*1.05 -> 2.625 | K44: 2.734090909 | L44: 2.734090909 | M44: открыт | N44: 0.91 | P44: 35 | Q44: ПС 110/10 кВ Лутошкино | R44: 2,5+2,5 | S44: 0.063 | T44: 0.3539090909 | U44: 0.4 | V44: 60 | W44: -0.04609090909 | X44: 0 | Y44: 2.625 | Z44: 2.671090909 | AA44: 2.671090909 | AB44: открыт
A45: 36 | B45: ПС 110/10 кВ Круглое | C45: 2,5+2,5 | D45: 5 | E45: 0.5454545455 | F45: 0.5 | G45: 60 | H45: 0.04545454545 | I45: 0 | J45: =2.5*1.05 -> 2.625 | K45: 2.579545455 | L45: 2.579545455 | M45: открыт | N45: 0.93 | P45: 36 | Q45: ПС 110/10 кВ Круглое | R45: 2,5+2,5 | T45: 0.5454545455 | U45: 0.5 | V45: 60 | W45: 0.04545454545 | X45: 0 | Y45: 2.625 | Z45: 2.579545455 | AA45: 2.579545455 | AB45: открыт
A46: 37 | B46: ПС 110/10/6 кВ Юго-Западная | C46: 40+40 | D46: 80 | E46: 40.03 | F46: 4.5 | G46: 30 | H46: 35.53 | I46: 0 | J46: =40*1.05 -> 42 | K46: 6.47 | L46: 6.47 | M46: * | N46: 0.93 | P46: 37 | Q46: ПС 110/10/6 кВ Юго-Западная | R46: 40+40 | S46: 1.47 | T46: 41.5 | U46: 4.5 | V46: 30 | W46: 37 | X46: 0 | Y46: 42 | Z46: 5 | AA46: 5 | AB46: открыт
A47: 38 | B47: ПС 110/6 кВ Привокзальная | C47: 20+20+25 | D47: 65 | E47: 40.51 | F47: 1.38 | G47: 30 | H47: 39.13 | I47: 0 | J47: =40*1.05 -> 42 | K47: 2.87 | L47: 2.87 | M47: открыт | N47: 0.95 | P47: 38 | Q47: ПС 110/6 кВ Привокзальная | R47: 20+20+25 | S47: 0.357 | T47: 40.867 | U47: 1.38 | V47: 30 | W47: 39.487 | X47: 0 | Y47: 42 | Z47: 2.513 | AA47: 2.513 | AB47: открыт
A48: 39 | B48: ПС 110/10/6 кВ Южная | C48: 40+40 | D48: 80 | E48: 40.39 | F48: 6 | G48: 30 | H48: 34.39 | I48: 0 | J48: =40*1.05 -> 42 | K48: 7.61 | L48: 7.61 | M48: * | N48: 0.98 | P48: 39 | Q48: ПС 110/10/6 кВ Южная | R48: 40+40 | S48: 6.846 | T48: 47.236 | U48: 6 | V48: 30 | W48: 41.236 | X48: 0 | Y48: 42 | Z48: 0.764 | AA48: 0.764 | AB48: *
A49: 40 | B49: ПС 110/6 кВ Ситовка | C49: 10+10 | D49: 20 | E49: 4.1 | F49: 1.29 | G49: 30 | H49: 2.81 | I49: 0 | J49: 10.5 | K49: 7.69 | L49: 7.69 | M49: * | N49: 0.95 | P49: 40 | Q49: ПС 110/6 кВ Ситовка | R49: 10+10 | T49: 4.1 | U49: 1.29 | V49: 30 | W49: 2.81 | X49: 0 | Y49: 10.5 | Z49: 7.69 | AA49: 7.69 | AB49: *
A50: 41 | B50: ПС 110/6 кВ ЛТП | C50: 6,3+10 | D50: 16.3 | E50: 2.54 | F50: 0 | G50: 0 | H50: 2.54 | I50: 0 | J50: =6.3*1.05 -> 6.615 | K50: 4.075 | L50: 4.075 | M50: * | N50: 0.95 | P50: 41 | Q50: ПС 110/6 кВ ЛТП | R50: 6,3+10 | T50: 2.54 | U50: 0 | V50: 0 | W50: 2.54 | X50: 0 | Y50: 6.615 | Z50: 4.075 | AA50: 4.075 | AB50: *
A51: 42 | B51: ПС 110/6 кВ КПД | C51: 10+16 | D51: =10+16 -> 26 | E51: 2.1 | F51: 0 | G51: 0 | H51: 2.1 | I51: 0 | J51: 10.5 | K51: 8.4 | L51: 8.4 | M51: * | N51: 0.97 | P51: 42 | Q51: ПС 110/6 кВ КПД | R51: 10+16 | S51: 4.005 | T51: 6.105 | U51: 0 | V51: 0 | W51: 6.105 | X51: 0 | Y51: 10.5 | Z51: 4.395 | AA51: 4.395 | AB51: *
A52: 43 | B52: ПС 110/10 кВ Октябрьская | C52: 40+40 | D52: 80 | E52: 19.779 | F52: 0.12 | G52: 20 | H52: 19.659 | I52: 0 | J52: =40*1.05 -> 42 | K52: 22.341 | L52: 22.341 | M52: * | N52: 0.98 | P52: 43 | Q52: ПС 110/10 кВ Октябрьская | R52: 40+40 | S52: 26.543 | T52: 46.322 | U52: 0.12 | V52: 20 | W52: 46.202 | X52: 0 | Y52: 42 | Z52: -4.202 | AA52: -4.202 | AB52: *
A53: 44 | B53: ПС 110/10 кВ Манежная | C53: 40+40 | D53: =40+40 -> 80 | E53: 0.48 | F53: 0 | G53: 0 | H53: 0.48 | I53: 0 | J53: =40*1.05 -> 42 | K53: =J53-I53-H53 -> 41.52 | L53: =K53 -> 41.52 | M53: * | P53: 44 | Q53: ПС 110/10 кВ Манежная | R53: 40+40 | S53: 41.34 | T53: =S53+E53 -> 41.82 | U53: 0 | V53: 0 | W53: =T53-U53 -> 41.82 | X53: 0 | Y53: 42 | Z53: =Y53-X53-W53 -> 0.18 | AA53: =Z53 -> 0.18 | AB53: открыт
A54: 45 | B54: ПС 110/10 кВ Университетская | C54: 40+40 | D54: 80 | E54: 0.21 | F54: 0 | G54: 0 | H54: 0.21 | I54: 0 | J54: 42 | K54: 41.79 | L54: 41.79 | M54: открыт | N54: 0.99 | P54: 45 | Q54: ПС 110/10 кВ Университетская | R54: 40+40 | S54: 42.74 | T54: 42.95 | U54: 0 | V54: 0 | W54: 42.95 | X54: 0 | Y54: 42 | Z54: -0.95 | AA54: -0.95 | AB54: закрыт
A55: 46 | B55: ПС 110/6 кВ Тепличная | C55: 15+15 | D55: 30 | E55: 6.96 | F55: 0 | G55: 0 | H55: 6.96 | I55: 0 | J55: =15*1.05 -> 15.75 | K55: 8.79 | L55: 8.79 | M55: * | N55: 1 | P55: 46 | Q55: ПС 110/6 кВ Тепличная | R55: 15+15 | S55: 3.39 | T55: 10.35 | U55: 0 | V55: 0 | W55: 10.35 | X55: 0 | Y55: 15.75 | Z55: 5.4 | AA55: 5.4 | AB55: *
A56: 47 | B56: ПС 110/6 кВ Трубная-2 | C56: 25+25 | D56: 50 | E56: 3.6 | F56: 0 | G56: 0 | H56: 3.6 | I56: 0 | J56: =25*1.05 -> 26.25 | K56: =J56-I56-H56 -> 22.65 | L56: =K56 -> 22.65 | M56: * | N56: 0.96 | P56: 47 | Q56: ПС 110/6 кВ Трубная-2 | R56: 25+25 | S56: 20.64 | T56: 24.24 | U56: 0 | V56: 0 | W56: 24.24 | X56: 0 | Y56: =25*1.05 -> 26.25 | Z56: 2.01 | AA56: 2.01 | AB56: *
A57: 48 | B57: ПС 110/6 кВ ГПП-2 ЛТЗ | C57: 63+63 | D57: 126 | E57: 12.37 | F57: 0 | G57: 0 | H57: 12.37 | I57: 0 | J57: =63*1.05 -> 66.15 | K57: 53.78 | L57: 53.78 | M57: * | N57: 0.93 | P57: 48 | Q57: ПС 110/6 кВ ГПП-2 ЛТЗ | R57: 63+63 | S57: 3.27 | T57: 15.64 | U57: 0 | V57: 0 | W57: 15.64 | X57: 0 | Y57: 66.15 | Z57: 50.51 | AA57: 50.51 | AB57: *
A58: 49 | B58: ПС 35/10 кВ Авангард | C58: 4+4 | D58: 8 | E58: 1.41 | F58: 1.2 | G58: 1.2 | H58: 0.21 | I58: 0 | J58: =4*1.05 -> 4.2 | K58: 3.99 | L58: 3.99 | M58: открыт | N58: 0.8779199634 | P58: 49 | Q58: ПС 35/10 кВ Авангард | R58: 4+4 | S58: 0.23 | T58: 1.64 | U58: 1.2 | V58: 1.2 | W58: 0.44 | X58: 0 | Y58: 4.2 | Z58: 3.76 | AA58: 3.76 | AB58: открыт
A59: 50 | B59: ПС 35/10 кВ Афанасьево | C59: 2,5+2,5 | D59: 5 | E59: 1.4 | F59: 0 | G59: 0 | H59: 1.4 | I59: 0 | J59: =2.5*1.05 -> 2.625 | K59: 1.225 | L59: 1.225 | M59: открыт | N59: 0.91 | P59: 50 | Q59: ПС 35/10 кВ Афанасьево | R59: 2,5+2,5 | S59: 0.13 | T59: 1.53 | U59: 0 | V59: 0 | W59: 1.53 | X59: 0 | Y59: 2.625 | Z59: 1.095 | AA59: 1.095 | AB59: открыт
A60: 51 | B60: ПС 35/10 кВ Бабарыкино | C60: 2,5+2,5 | D60: 5 | E60: 0.66 | F60: 0.15 | G60: 260 | H60: 0.51 | I60: 0 | J60: 2.625 | K60: 2.115 | L60: 2.115 | M60: открыт | N60: 0.94 | P60: 51 | Q60: ПС 35/10 кВ Бабарыкино | R60: 2,5+2,5 | S60: 0.47 | T60: 1.13 | U60: 0.15 | V60: 260 | W60: 0.98 | X60: 0 | Y60: 2.625 | Z60: 1.645 | AA60: 1.645 | AB60: открыт
A61: 52 | B61: ПС 35/10 кВ Аврора | C61: 2,5+2,5 | D61: 5 | E61: 1.195776 | F61: 0.618 | G61: 60 | H61: 0.577776 | I61: 0 | J61: 2.625 | K61: 2.047224 | L61: 2.047224 | M61: открыт | N61: 0.92 | P61: 52 | Q61: ПС 35/10 кВ Аврора | R61: 2,5+2,5 | S61: 0.13 | T61: 1.325776 | U61: 0.618 | V61: 60 | W61: 0.707776 | X61: 0 | Y61: 2.625 | Z61: 1.917224 | AA61: 1.917224 | AB61: открыт
A62: 53 | B62: ПС 35/10 кВ Б.Боёвка | C62: 2,5+2,5 | D62: 5 | E62: 0.34946 | F62: 0.15 | G62: 100 | H62: 0.19946 | I62: 0 | J62: 2.625 | K62: 2.42554 | L62: 2.42554 | M62: открыт | N62: 0.9 | P62: 53 | Q62: ПС 35/10 кВ Б.Боёвка | R62: 2,5+2,5 | T62: 0.34946 | U62: 0.15 | V62: 100 | W62: 0.19946 | X62: 0 | Y62: 2.625 | Z62: 2.42554 | AA62: 2.42554 | AB62: открыт
A63: 54 | B63: ПС 35/10 кВ Борки | C63: 2,5+2,5 | D63: 5 | E63: 0.917592 | F63: 0 | G63: 0 | H63: 0.917592 | I63: 0 | J63: 2.625 | K63: 1.707408 | L63: 1.707408 | M63: открыт | N63: 0.9 | P63: 54 | Q63: ПС 35/10 кВ Борки | R63: 2,5+2,5 | S63: 0.02 | T63: 0.937592 | U63: 0 | V63: 0 | W63: 0.937592 | X63: 0 | Y63: 2.625 | Z63: 1.687408 | AA63: 1.687408 | AB63: открыт
A64: 55 | B64: ПС 35/6кВ Восточная | C64: 10+16 | D64: 26 | E64: 6.294967151 | F64: 4.8 | G64: 20 | H64: 1.494967151 | I64: 0 | J64: =10*1.05 -> 10.5 | K64: 9.005032849 | L64: 9.005032849 | M64: открыт | N64: 0.94 | P64: 55 | Q64: ПС 35/6кВ Восточная | R64: 10+16 | S64: 0.7 | T64: 6.994967151 | U64: 4.8 | V64: 20 | W64: 2.194967151 | X64: 0 | Y64: 10.5 | Z64: 8.305032849 | AA64: 8.305032849 | AB64: открыт
A65: 56 | B65: ПС 35/10 кВ Васильевка | C65: 2,5+2,5 | D65: 5 | E65: 0.73179 | F65: 0.02 | G65: 60 | H65: 0.71179 | I65: 0 | J65: 2.625 | K65: 1.91321 | L65: 1.91321 | M65: открыт | N65: 0.89 | P65: 56 | Q65: ПС 35/10 кВ Васильевка | R65: 2,5+2,5 | S65: 0.02 | T65: 0.75179 | U65: 0.02 | V65: 60 | W65: 0.73179 | X65: 0 | Y65: 2.625 | Z65: 1.89321 | AA65: 1.89321 | AB65: открыт
A66: 57 | B66: ПС 35/10 кВ Воронец | C66: 4+4 | D66: 8 | E66: 1.53 | F66: 1.2 | G66: 120 | H66: 0.33 | I66: 0 | J66: =4*1.05 -> 4.2 | K66: 3.87 | L66: 3.87 | M66: открыт | N66: 0.86 | P66: 57 | Q66: ПС 35/10 кВ Воронец | R66: 4+4 | S66: 0.18 | T66: 1.71 | U66: 1.2 | V66: 120 | W66: 0.51 | X66: 0 | Y66: 4.2 | Z66: 3.69 | AA66: 3.69 | AB66: открыт
A67: 58 | B67: ПС 35/6 кВ Голиково | C67: 1,8+1,6 | D67: 3.4 | E67: 1.427769 | F67: 0 | G67: 0 | H67: 1.427769 | I67: 0 | J67: =1.6*1.05 -> 1.68 | K67: 0.252231 | L67: 0.252231 | M67: открыт | N67: 0.81 | P67: 58 | Q67: ПС 35/6 кВ Голиково | R67: 1,8+1,6 | S67: 0.04 | T67: 1.467769 | U67: 0 | V67: 0 | W67: 1.467769 | X67: 0 | Y67: 1.68 | Z67: 0.212231 | AA67: 0.212231 | AB67: открыт
A68: 59 | B68: ПС 35/10 кВ Гатище | C68: 2,5+2,5 | D68: 5 | E68: 0.367452 | F68: 0 | G68: 0 | H68: 0.367452 | I68: 0 | J68: =2.5*1.05 -> 2.625 | K68: 2.257548 | L68: 2.257548 | M68: открыт | N68: 0.81 | P68: 59 | Q68: ПС 35/10 кВ Гатище | R68: 2,5+2,5 | T68: 0.367452 | U68: 0 | V68: 0 | W68: 0.367452 | X68: 0 | Y68: 2.625 | Z68: 2.257548 | AA68: 2.257548 | AB68: открыт
A69: 60 | B69: ПС 35/10 кВ Гнилуша | C69: 6,3+6,3 | D69: 12.6 | E69: 2.101604 | F69: 0.05 | G69: 40 | H69: =E69-F69 -> 2.051604 | I69: 0 | J69: =6.3*1.05 -> 6.615 | K69: 4.563396 | L69: 4.563396 | M69: открыт | N69: 0.86 | P69: 60 | Q69: ПС 35/10 кВ Гнилуша | R69: 6,3+6,3 | S69: 1.33 | T69: =S69+E69 -> 3.431604 | U69: 0.05 | V69: 40 | W69: 3.381604 | X69: 0 | Y69: 6.615 | Z69: 3.233396 | AA69: 3.233396 | AB69: открыт
A70: 61 | B70: ПС 35/10кВ Грызлово | C70: 2,5+2,5 | D70: 5 | E70: 0.614669 | F70: 0.4 | G70: 260 | H70: 0.214669 | I70: 0 | J70: =2.5*1.05 -> 2.625 | K70: 2.410331 | L70: 2.410331 | M70: открыт | N70: 0.91 | P70: 61 | Q70: ПС 35/10кВ Грызлово | R70: 2,5+2,5 | T70: 0.614669 | U70: 0.4 | V70: 260 | W70: 0.214669 | X70: 0 | Y70: 2.625 | Z70: 2.410331 | AA70: 2.410331 | AB70: открыт
A71: 62 | B71: ПС 35/10 кВ Жерновное | C71: 2,5+2,5 | D71: 5 | E71: 0.36157 | F71: 0 | G71: 0 | H71: 0.36157 | I71: 0 | J71: =2.5*1.05 -> 2.625 | K71: 2.26343 | L71: 2.26343 | M71: открыт | N71: 0.9 | P71: 62 | Q71: ПС 35/10 кВ Жерновное | R71: 2,5+2,5 | S71: 0.36 | T71: 0.72157 | U71: 0 | V71: 0 | W71: 0.72157 | X71: 0 | Y71: 2.625 | Z71: 1.90343 | AA71: 1.90343 | AB71: открыт
A72: 63 | B72: ПС 35/10 кВ Задонск-сельск. | C72: 3,2+1,6 | D72: 4.8 | E72: 1.922722 | F72: 0 | G72: 0 | H72: 1.922722 | I72: 0 | J72: =1.6*1.05 -> 1.68 | K72: -0.242722 | L72: -0.242722 | M72: закрыт | N72: 0.82 | P72: 63 | Q72: ПС 35/10 кВ Задонск-сельск. | R72: 3,2+1,6 | S72: 0.14 | T72: 2.062722 | U72: 0 | V72: 0 | W72: 2.062722 | X72: 0 | Y72: 1.68 | Z72: -0.382722 | AA72: -0.382722 | AB72: закрыт
A73: 64 | B73: ПС 35/10 кВ Захаровка | C73: 2,5+2,5 | D73: 5 | E73: 0.438209 | F73: 0.02 | G73: 60 | H73: 0.418209 | I73: 0 | J73: =2.5*1.05 -> 2.625 | K73: 2.206791 | L73: 2.206791 | M73: открыт | N73: 0.8 | P73: 64 | Q73: ПС 35/10 кВ Захаровка | R73: 2,5+2,5 | S73: 0.02 | T73: 0.458209 | U73: 0.02 | V73: 60 | W73: 0.438209 | X73: 0 | Y73: 2.625 | Z73: 2.186791 | AA73: 2.186791 | AB73: открыт
A74: 65 | B74: ПС 35/10 кВ Казаки | C74: 4+4 | D74: 8 | E74: 1.67 | F74: 0 | G74: 0 | H74: 1.67 | I74: 0 | J74: =4*1.05 -> 4.2 | K74: 2.53 | L74: 2.53 | M74: открыт | N74: 0.9 | P74: 65 | Q74: ПС 35/10 кВ Казаки | R74: 4+4 | S74: 0.14 | T74: 1.81 | U74: 0 | V74: 0 | W74: 1.81 | X74: 0 | Y74: 4.2 | Z74: 2.39 | AA74: 2.39 | AB74: открыт
A75: 66 | B75: ПС 35/10 кВ Колесово | C75: 6,3+6,3 | D75: 12.6 | E75: 2.55348 | F75: 0.4 | G75: 60 | H75: 2.15348 | I75: 0 | J75: =6.3*1.05 -> 6.615 | K75: 4.46152 | L75: 4.46152 | M75: открыт | N75: 0.91 | P75: 66 | Q75: ПС 35/10 кВ Колесово | R75: 6,3+6,3 | S75: 0.23 | T75: 2.78348 | U75: 0.4 | V75: 60 | W75: 2.38348 | X75: 0 | Y75: 6.615 | Z75: 4.23152 | AA75: 4.23152 | AB75: открыт
A76: 67 | B76: ПС 35/10 кВ Князево | C76: 2,5+2,5 | D76: 5 | E76: 0.385098 | F76: 0 | G76: 0 | H76: 0.385098 | I76: 0 | J76: =2.5*1.05 -> 2.625 | K76: 2.239902 | L76: 2.239902 | M76: открыт | N76: 0.75 | P76: 67 | Q76: ПС 35/10 кВ Князево | R76: 2,5+2,5 | S76: 0.05 | T76: 0.435098 | U76: 0 | V76: 0 | W76: 0.435098 | X76: 0 | Y76: 2.625 | Z76: 2.189902 | AA76: 2.189902 | AB76: открыт
A77: 68 | B77: ПС 35/10 кВ Кириллово | C77: 2,5+2,5 | D77: 5 | E77: 0.346 | F77: 0.05 | G77: 60 | H77: 0.296 | I77: 0 | J77: =2.5*1.05 -> 2.625 | K77: 2.329 | L77: 2.329 | M77: открыт | N77: 0.91 | P77: 68 | Q77: ПС 35/10 кВ Кириллово | R77: 2,5+2,5 | S77: 0.01 | T77: 0.356 | U77: 0.05 | V77: 60 | W77: 0.306 | X77: 0 | Y77: 2.625 | Z77: 2.319 | AA77: 2.319 | AB77: открыт
A78: 69 | B78: ПС 35/10 кВ Ксизово | C78: 2,5+2,5 | D78: 5 | E78: 0.231474 | F78: 0 | G78: 0 | H78: 0.231474 | I78: 0 | J78: =2.5*1.05 -> 2.625 | K78: 2.393526 | L78: 2.393526 | M78: открыт | N78: 0.94 | P78: 69 | Q78: ПС 35/10 кВ Ксизово | R78: 2,5+2,5 | S78: 0.05 | T78: 0.281474 | U78: 0 | V78: 0 | W78: 0.281474 | X78: 0 | Y78: 2.625 | Z78: 2.343526 | AA78: 2.343526 | AB78: открыт
A79: 70 | B79: ПС 35/10 кВ Ламское | C79: 2,5+2,5 | D79: 5 | E79: 1.616512 | F79: 0.22 | G79: 180 | H79: 1.396512 | I79: 0 | J79: =2.5*1.05 -> 2.625 | K79: 1.228488 | L79: 1.228488 | M79: открыт | N79: 0.9 | P79: 70 | Q79: ПС 35/10 кВ Ламское | R79: 2,5+2,5 | S79: 0.04 | T79: 1.656512 | U79: 0.22 | V79: 180 | W79: 1.436512 | X79: 0 | Y79: 2.625 | Z79: 1.188488 | AA79: 1.188488 | AB79: открыт
A80: 71 | B80: ПС 35/10 кВ Казачье | C80: 2,5+2,5 | D80: 5 | E80: 0.458796 | F80: 0 | G80: 0 | H80: 0.458796 | I80: 0 | J80: =2.5*1.05 -> 2.625 | K80: 2.166204 | L80: 2.166204 | M80: открыт | N80: 0.88 | P80: 71 | Q80: ПС 35/10 кВ Казачье | R80: 2,5+2,5 | S80: 0.17 | T80: 0.628796 | U80: 0 | V80: 0 | W80: 0.628796 | X80: 0 | Y80: 2.625 | Z80: 1.996204 | AA80: 1.996204 | AB80: открыт
A81: 72 | B81: ПС 35/10 кВ Лебяжье | C81: 2,5+1,6 | D81: 4.1 | E81: 0.29064 | F81: 0 | G81: 0 | H81: 0.29064 | I81: 0 | J81: =1.6*1.05 -> 1.68 | K81: 1.38936 | L81: 1.38936 | M81: открыт | N81: 0.95 | P81: 72 | Q81: ПС 35/10 кВ Лебяжье | R81: 2,5+1,6 | T81: 0.29064 | U81: 0 | V81: 0 | W81: 0.29064 | X81: 0 | Y81: 1.68 | Z81: 1.38936 | AA81: 1.38936 | AB81: открыт
A82: 73 | B82: ПС 35/10 кВ Ломовец | C82: 1,6+2,5 | D82: 4.1 | E82: 0.381465 | F82: 0 | G82: 0 | H82: 0.381465 | I82: 0 | J82: =1.6*1.05 -> 1.68 | K82: 1.298535 | L82: 1.298535 | M82: открыт | N82: 0.8 | P82: 73 | Q82: ПС 35/10 кВ Ломовец | R82: 1,6+2,5 | S82: 0.01 | T82: 0.391465 | U82: 0 | V82: 0 | W82: 0.391465 | X82: 0 | Y82: 1.68 | Z82: 1.288535 | AA82: 1.288535 | AB82: открыт
A83: 74 | B83: ПС 35/10 кВ Ольшанец | C83: 2,5+4 | D83: 6.5 | E83: 1.29577 | F83: 0 | G83: 0 | H83: 1.29577 | I83: 0 | J83: =2.5*1.05 -> 2.625 | K83: 1.32923 | L83: 1.32923 | M83: открыт | N83: 0.87 | P83: 74 | Q83: ПС 35/10 кВ Ольшанец | R83: 2,5+4 | S83: 0.04 | T83: 1.33577 | U83: 0 | V83: 0 | W83: 1.33577 | X83: 0 | Y83: 2.625 | Z83: 1.28923 | AA83: 1.28923 | AB83: открыт
A84: 75 | B84: ПС 35/10 кВ Плоское | C84: 4+4 | D84: 8 | E84: 3.292536 | F84: 0.74 | G84: 140 | H84: 2.552536 | I84: 0 | J84: =4*1.05 -> 4.2 | K84: 1.647464 | L84: 1.647464 | M84: открыт | N84: 0.93 | P84: 75 | Q84: ПС 35/10 кВ Плоское | R84: 4+4 | S84: 2.02 | T84: 5.312536 | U84: 0.74 | V84: 140 | W84: 4.572536 | X84: 0 | Y84: 4.2 | Z84: -0.372536 | AA84: -0.372536 | AB84: закрыт
A85: 76 | B85: ПС 35/10 кВ Стегаловка | C85: 2,5+3,2 | D85: 5.7 | E85: 0.46883 | F85: 0.1 | G85: 80 | H85: 0.36883 | I85: 0 | J85: =2.5*1.05 -> 2.625 | K85: 2.25617 | L85: 2.25617 | M85: открыт | N85: 0.9 | P85: 76 | Q85: ПС 35/10 кВ Стегаловка | R85: 2,5+3,2 | S85: 0.01 | T85: 0.47883 | U85: 0.1 | V85: 80 | W85: 0.37883 | X85: 0 | Y85: 2.625 | Z85: 2.24617 | AA85: 2.24617 | AB85: открыт
A86: 77 | B86: ПС 35/10 кВ Солидарность | C86: 4+4 | D86: 8 | E86: 1.8 | F86: 1.2 | G86: 70 | H86: 0.6 | I86: 0 | J86: =4*1.05 -> 4.2 | K86: 3.6 | L86: 3.6 | M86: открыт | N86: 0.93 | P86: 77 | Q86: ПС 35/10 кВ Солидарность | R86: 4+4 | S86: 1.89 | T86: 3.69 | U86: 1.2 | V86: 70 | W86: 2.49 | X86: 0 | Y86: 4.2 | Z86: 1.71 | AA86: 1.71 | AB86: открыт
A87: 78 | B87: ПС 35/10 кВ Тимирязево | C87: 4+4 | D87: 8 | E87: 1.218266 | F87: 0.35 | G87: 60 | H87: 0.868266 | I87: 0 | J87: =4*1.05 -> 4.2 | K87: 3.331734 | L87: 3.331734 | M87: открыт | N87: 0.93 | P87: 78 | Q87: ПС 35/10 кВ Тимирязево | R87: 4+4 | S87: 0.14 | T87: 1.358266 | U87: 0.35 | V87: 60 | W87: 1.008266 | X87: 0 | Y87: 4.2 | Z87: 3.191734 | AA87: 3.191734 | AB87: открыт
A88: 79 | B88: ПС 35/10 кВ Талица | C88: 2,5+2,5 | D88: 5 | E88: 1.50856 | F88: 0.55 | G88: 110 | H88: 0.95856 | I88: 0 | J88: =2.5*1.05 -> 2.625 | K88: 1.66644 | L88: 1.66644 | M88: открыт | N88: 0.94 | P88: 79 | Q88: ПС 35/10 кВ Талица | R88: 2,5+2,5 | S88: 0.343 | T88: 1.85156 | U88: 0.55 | V88: 110 | W88: 1.30156 | X88: 0 | Y88: 2.625 | Z88: 1.32344 | AA88: 1.32344 | AB88: открыт
A89: 80 | B89: ПС 35/10 кВ II-е Тербуны | C89: 2,5+2,5 | D89: 5 | E89: 1.265322 | F89: 0 | G89: 0 | H89: 1.265322 | I89: 0 | J89: =2.5*1.05 -> 2.625 | K89: 1.359678 | L89: 1.359678 | M89: открыт | N89: 0.92 | P89: 80 | Q89: ПС 35/10 кВ II-е Тербуны | R89: 2,5+2,5 | S89: 0.1 | T89: 1.365322 | U89: 0 | V89: 0 | W89: 1.365322 | X89: 0 | Y89: 2.625 | Z89: 1.259678 | AA89: 1.259678 | AB89: открыт
A90: 81 | B90: ПС 35/10 кВ Тихий Дон | C90: 4+4 | D90: 8 | E90: 0.5882 | F90: 0.103 | G90: 60 | H90: 0.4852 | I90: 0 | J90: =4*1.05 -> 4.2 | K90: 3.7148 | L90: 3.7148 | M90: открыт | N90: 0.94 | P90: 81 | Q90: ПС 35/10 кВ Тихий Дон | R90: 4+4 | S90: 0.11 | T90: 0.6982 | U90: 0.103 | V90: 60 | W90: 0.5952 | X90: 0 | Y90: 4.2 | Z90: 3.6048 | AA90: 3.6048 | AB90: открыт
A91: 82 | B91: ПС 35/10 кВ Хитрово | C91: 6,3+6,3 | D91: 12.6 | E91: 1.31826 | F91: 0 | G91: 0 | H91: 1.31826 | I91: 0 | J91: =6.3*1.05 -> 6.615 | K91: 5.29674 | L91: 5.29674 | M91: открыт | N91: 0.95 | P91: 82 | Q91: ПС 35/10 кВ Хитрово | R91: 6,3+6,3 | S91: 0.17 | T91: 1.48826 | U91: 0 | V91: 0 | W91: 1.48826 | X91: 0 | Y91: 6.62 | Z91: 5.13174 | AA91: 5.13174 | AB91: открыт
A92: 83 | B92: ПС 35/10 кВ Чернава | C92: 2,5+2,5 | D92: 5 | E92: 1.478977 | F92: 0 | G92: 0 | H92: 1.478977 | I92: 0 | J92: =2.5*1.05 -> 2.625 | K92: 1.146023 | L92: 1.146023 | M92: открыт | N92: 0.87 | P92: 83 | Q92: ПС 35/10 кВ Чернава | R92: 2,5+2,5 | S92: 0.06 | T92: 1.538977 | U92: 0 | V92: 0 | W92: 1.538977 | X92: 0 | Y92: 2.625 | Z92: 1.086023 | AA92: 1.086023 | AB92: открыт
A93: 84 | B93: ПС 35/10 кВ Чернолес | C93: 2,5+2,5 | D93: 5 | E93: 0.251888 | F93: 0 | G93: 0 | H93: 0.251888 | I93: 0 | J93: =2.5*1.05 -> 2.625 | K93: 2.373112 | L93: 2.373112 | M93: открыт | N93: 0.96 | P93: 84 | Q93: ПС 35/10 кВ Чернолес | R93: 2,5+2,5 | S93: 0.02 | T93: 0.271888 | U93: 0 | V93: 0 | W93: 0.271888 | X93: 0 | Y93: 2.625 | Z93: 2.353112 | AA93: 2.353112 | AB93: открыт
A94: 85 | B94: ПС 35/6 кВ ПС № 5 | C94: 6,3+3,2 | D94: 9.5 | E94: 1.348362 | F94: 0 | G94: 0 | H94: 1.348362 | I94: 0 | J94: =3.2*1.05 -> 3.36 | K94: 2.011638 | L94: 2.011638 | M94: открыт | N94: 0.72 | P94: 85 | Q94: ПС 35/6 кВ ПС № 5 | R94: 6,3+3,2 | T94: 1.348362 | U94: 0 | V94: 0 | W94: 1.348362 | X94: 0 | Y94: 3.36 | Z94: 2.011638 | AA94: 2.011638 | AB94: открыт
A95: 86 | B95: ПС 35/10 кВ Красное | C95: 4+4 | D95: 8 | E95: 3.290909091 | F95: 1.3 | G95: 150 | H95: 1.990909091 | I95: 0 | J95: =4*1.05 -> 4.2 | K95: 2.209090909 | L95: 2.209090909 | M95: открыт | N95: 0.92 | P95: 86 | Q95: ПС 35/10 кВ Красное | R95: 4+4 | S95: 0.25 | T95: 3.540909091 | U95: 1.3 | V95: 150 | W95: 2.240909091 | X95: 0 | Y95: 4.2 | Z95: 1.959090909 | AA95: 1.959090909 | AB95: открыт
A96: 87 | B96: ПС 35/10 кВ Теплое | C96: 2,5+2,5 | D96: 5 | E96: 1.090909091 | F96: 1 | G96: 60 | H96: 0.09090909091 | I96: 0 | J96: =2.5*1.05 -> 2.625 | K96: 2.534090909 | L96: 2.534090909 | M96: открыт | N96: 0.88 | P96: 87 | Q96: ПС 35/10 кВ Теплое | R96: 2,5+2,5 | S96: 0.01 | T96: 1.100909091 | U96: 1 | V96: 60 | W96: 0.1009090909 | X96: 0 | Y96: 2.625 | Z96: 2.524090909 | AA96: 2.524090909 | AB96: открыт
A97: 88 | B97: ПС 35/10 кВ Данков-сельская | C97: 6,3+4 | D97: 10.3 | E97: 3.909090909 | F97: 2 | G97: 120 | H97: 1.909090909 | I97: 0 | J97: =4*1.05 -> 4.2 | K97: 2.290909091 | L97: 2.290909091 | M97: открыт | N97: 0.92 | P97: 88 | Q97: ПС 35/10 кВ Данков-сельская | R97: 6,3+4 | S97: 0.5 | T97: 4.409090909 | U97: 2 | V97: 120 | W97: 2.409090909 | X97: 0 | Y97: 4.2 | Z97: 1.790909091 | AA97: 1.790909091 | AB97: открыт
A98: 89 | B98: ПС 35/10 кВ Колыбельская | C98: 2,5+2,5 | D98: 5 | E98: 1.018181818 | F98: 0 | G98: 0 | H98: 1.018181818 | I98: 0 | J98: =2.5*1.05 -> 2.625 | K98: 1.606818182 | L98: 1.606818182 | M98: открыт | N98: 0.96 | P98: 89 | Q98: ПС 35/10 кВ Колыбельская | R98: 2,5+2,5 | S98: 0.08 | T98: 1.098181818 | U98: 0 | V98: 0 | W98: 1.098181818 | X98: 0 | Y98: 2.625 | Z98: 1.526818182 | AA98: 1.526818182 | AB98: открыт
A99: 90 | B99: ПС 35/10 кВ Топки | C99: 2,5+2,5 | D99: 5 | E99: 0.5545454545 | F99: 0.5 | G99: 60 | H99: 0.05454545455 | I99: 0 | J99: =2.5*1.05 -> 2.625 | K99: 2.570454545 | L99: 2.570454545 | M99: открыт | N99: 0.88 | P99: 90 | Q99: ПС 35/10 кВ Топки | R99: 2,5+2,5 | S99: 0.01 | T99: 0.5645454545 | U99: 0.5 | V99: 60 | W99: 0.06454545455 | X99: 0 | Y99: 2.625 | Z99: 2.560454545 | AA99: 2.560454545 | AB99: открыт
A100: 91 | B100: ПС 35/10 кВ Агроном | C100: 4+6,3 | D100: 10.3 | E100: 1.545454545 | F100: 1 | G100: 60 | H100: 0.5454545455 | I100: 0 | J100: =4*1.05 -> 4.2 | K100: 3.654545455 | L100: 3.654545455 | M100: открыт | N100: 0.94 | P100: 91 | Q100: ПС 35/10 кВ Агроном | R100: 4+6,3 | S100: 0.036 | T100: 1.581454545 | U100: 1 | V100: 60 | W100: 0.5814545455 | X100: 0 | Y100: 4.2 | Z100: 3.618545455 | AA100: 3.618545455 | AB100: открыт
A101: 92 | B101: ПС 35/10 кВ Троекурово-совхозная | C101: 2,5+2,5 | D101: 5 | E101: 1.872727273 | F101: 1 | G101: 60 | H101: =E101-F101 -> 0.8727272727 | I101: 0 | J101: =2.5*1.05 -> 2.625 | K101: =J101-I101-H101 -> 1.752272727 | L101: =K101 -> 1.752272727 | M101: открыт | N101: 0.96 | P101: 92 | Q101: ПС 35/10 кВ Троекурово-совхозная | R101: 2,5+2,5 | S101: 1.29 | T101: =S101+E101 -> 3.162727273 | U101: 1 | V101: 60 | W101: 2.162727273 | X101: 0 | Y101: 2.625 | Z101: 0.4622727273 | AA101: 0.4622727273 | AB101: открыт
A102: 93 | B102: ПС 35/10 кВ Гагарино | C102: 1,8+1,8 | D102: 3.6 | E102: 0.3818181818 | F102: 0.5 | G102: 120 | H102: -0.1181818182 | I102: 0 | J102: =1.8*1.05 -> 1.89 | K102: 2.008181818 | L102: 2.008181818 | M102: открыт | N102: 0.95 | P102: 93 | Q102: ПС 35/10 кВ Гагарино | R102: 1,8+1,8 | T102: 0.3818181818 | U102: 0.5 | V102: 120 | W102: -0.1181818182 | X102: 0 | Y102: 1.89 | Z102: 2.008181818 | AA102: 2.008181818 | AB102: открыт
A103: 94 | B103: ПС 35/10 кВ Раненбург | C103: 1,6+1,6 | D103: 3.2 | E103: 1.818181818 | F103: 0.3 | G103: 120 | H103: 1.518181818 | I103: 0 | J103: =1.6*1.05 -> 1.68 | K103: 0.1618181818 | L103: 0.1618181818 | M103: открыт | N103: 0.93 | P103: 94 | Q103: ПС 35/10 кВ Раненбург | R103: 1,6+1,6 | S103: 0.04 | T103: 1.858181818 | U103: 0.3 | V103: 120 | W103: 1.558181818 | X103: 0 | Y103: 1.68 | Z103: 0.1218181818 | AA103: 0.1218181818 | AB103: открыт
A104: 95 | B104: ПС 35/10 кВ Сергиевка | C104: 2,5+2,5 | D104: 5 | E104: 0.4181818182 | F104: 0.3 | G104: 60 | H104: 0.1181818182 | I104: 0 | J104: =2.5*1.05 -> 2.625 | K104: 2.506818182 | L104: 2.506818182 | M104: открыт | N104: 0.87 | P104: 95 | Q104: ПС 35/10 кВ Сергиевка | R104: 2,5+2,5 | S104: 0.05 | T104: 0.4681818182 | U104: 0.3 | V104: 60 | W104: =T104-U104 -> 0.1681818182 | X104: 0 | Y104: 2.625 | Z104: =Y104-X104-W104 -> 2.456818182 | AA104: =Z104 -> 2.456818182 | AB104: открыт
A105: 96 | B105: ПС 35/10 кВ Дрезгалово | C105: 1,6+1,6 | D105: 3.2 | E105: 0.5818181818 | F105: 0.5 | G105: 60 | H105: 0.08181818182 | I105: 0 | J105: 1.68 | K105: 1.598181818 | L105: 1.598181818 | M105: открыт | N105: 0.93 | P105: 96 | Q105: ПС 35/10 кВ Дрезгалово | R105: 1,6+1,6 | S105: 0.01 | T105: 0.5918181818 | U105: 0.5 | V105: 60 | W105: 0.09181818182 | X105: 0 | Y105: 1.68 | Z105: 1.588181818 | AA105: 1.588181818 | AB105: открыт
A106: 97 | B106: ПС 35/10 кВ Долгое | C106: 2,5+2,5 | D106: 5 | E106: 0.2 | F106: 0 | G106: 0 | H106: 0.2 | I106: 0 | J106: =2.5*1.05 -> 2.625 | K106: 2.425 | L106: 2.425 | M106: открыт | N106: 0.87 | P106: 97 | Q106: ПС 35/10 кВ Долгое | R106: 2,5+2,5 | S106: 0.03 | T106: 0.23 | U106: 0 | V106: 0 | W106: 0.23 | X106: 0 | Y106: 2.625 | Z106: 2.395 | AA106: 2.395 | AB106: открыт
A107: 98 | B107: ПС 35/10 кВ Воскресеновка | C107: 1,6+1,6 | D107: 3.2 | E107: 0.5090909091 | F107: 0 | G107: 0 | H107: 0.5090909091 | I107: 0 | J107: =1.6*1.05 -> 1.68 | K107: 1.170909091 | L107: 1.170909091 | M107: открыт | N107: 0.88 | P107: 98 | Q107: ПС 35/10 кВ Воскресеновка | R107: 1,6+1,6 | S107: 0.08 | T107: 0.5890909091 | U107: 0 | V107: 0 | W107: 0.5890909091 | X107: 0 | Y107: 1.68 | Z107: 1.090909091 | AA107: 1.090909091 | AB107: открыт
A108: 99 | B108: ПС 35/10 кВ Сапрыкино | C108: 1,6+2,5 | D108: 4.1 | E108: 0.5090909091 | F108: 0 | G108: 0 | H108: 0.5090909091 | I108: 0 | J108: =1.6*1.05 -> 1.68 | K108: 1.170909091 | L108: 1.170909091 | M108: открыт | N108: 0.81 | P108: 99 | Q108: ПС 35/10 кВ Сапрыкино | R108: 1,6+2,5 | S108: 0.12 | T108: 0.6290909091 | U108: 0 | V108: 0 | W108: 0.6290909091 | X108: 0 | Y108: 1.68 | Z108: 1.050909091 | AA108: 1.050909091 | AB108: открыт
A109: 100 | B109: ПС 35/10 кВ Новополянье | C109: 2,5+2,5 | D109: 5 | E109: 0.4363636364 | F109: 0 | G109: 0 | H109: 0.4363636364 | I109: 0 | J109: =2.5*1.05 -> 2.625 | K109: 2.188636364 | L109: 2.188636364 | M109: открыт | N109: 0.82 | P109: 100 | Q109: ПС 35/10 кВ Новополянье | R109: 2,5+2,5 | S109: 0.03 | T109: 0.4663636364 | U109: 0 | V109: 0 | W109: 0.4663636364 | X109: 0 | Y109: 2.625 | Z109: 2.158636364 | AA109: 2.158636364 | AB109: открыт
A110: 101 | B110: ПС 35/10 кВ Ведное | C110: 2,5+2,5 | D110: 5 | E110: 0.6909090909 | F110: 0.5 | G110: 180 | H110: 0.1909090909 | I110: 0 | J110: 2.625 | K110: 2.434090909 | L110: 2.434090909 | M110: открыт | N110: 0.9 | P110: 101 | Q110: ПС 35/10 кВ Ведное | R110: 2,5+2,5 | S110: 0.009 | T110: 0.6999090909 | U110: 0.5 | V110: 180 | W110: 0.1999090909 | X110: 0 | Y110: 2.625 | Z110: 2.425090909 | AA110: 2.425090909 | AB110: открыт
A111: 102 | B111: ПС 35/10 кВ Бигильдино | C111: 2,5+2,5 | D111: 5 | E111: 0.9636363636 | F111: 0.5 | G111: 60 | H111: 0.4636363636 | I111: 0 | J111: 2.625 | K111: 2.161363636 | L111: 2.161363636 | M111: открыт | N111: 0.9 | P111: 102 | Q111: ПС 35/10 кВ Бигильдино | R111: 2,5+2,5 | S111: 0.07 | T111: 1.033636364 | U111: 0.5 | V111: 60 | W111: 0.5336363636 | X111: 0 | Y111: 2.625 | Z111: 2.091363636 | AA111: 2.091363636 | AB111: открыт
A112: 103 | B112: ПС 35/10 кВ Культура | C112: 2,5+2,5 | D112: 5 | E112: 0.8363636364 | F112: 1 | G112: 60 | H112: -0.1636363636 | I112: 0 | J112: 2.625 | K112: 2.788636364 | L112: 2.788636364 | M112: открыт | N112: 0.87 | P112: 103 | Q112: ПС 35/10 кВ Культура | R112: 2,5+2,5 | S112: 0.06 | T112: 0.8963636364 | U112: 1 | V112: 60 | W112: -0.1036363636 | X112: 0 | Y112: 2.625 | Z112: 2.728636364 | AA112: 2.728636364 | AB112: открыт
A113: 104 | B113: ПС 35/10 кВ Борятино | C113: 2,5+2,5 | D113: 5 | E113: 0.3090909091 | F113: 0.1 | G113: 60 | H113: 0.2090909091 | I113: 0 | J113: 2.625 | K113: 2.415909091 | L113: 2.415909091 | M113: открыт | N113: 0.91 | P113: 104 | Q113: ПС 35/10 кВ Борятино | R113: 2,5+2,5 | T113: 0.3090909091 | U113: 0.1 | V113: 60 | W113: 0.2090909091 | X113: 0 | Y113: 2.625 | Z113: 2.415909091 | AA113: 2.415909091 | AB113: открыт
A114: 105 | B114: ПС 35/10 кВ Б.Попово | C114: 2,5+2,5 | D114: 5 | E114: 1.181818182 | F114: 1 | G114: 90 | H114: 0.1818181818 | I114: 0 | J114: 2.625 | K114: 2.443181818 | L114: 2.443181818 | M114: открыт | N114: 0.94 | P114: 105 | Q114: ПС 35/10 кВ Б.Попово | R114: 2,5+2,5 | S114: 0.2 | T114: 1.381818182 | U114: 1 | V114: 90 | W114: 0.3818181818 | X114: 0 | Y114: 2.625 | Z114: 2.243181818 | AA114: 2.243181818 | AB114: открыт
A115: 106 | B115: ПС 35/10 кВ Б. Избищи | C115: 2,5+2,5 | D115: 5 | E115: 1.618181818 | F115: 1 | G115: 60 | H115: 0.6181818182 | I115: 0 | J115: 2.625 | K115: 2.006818182 | L115: 2.006818182 | M115: открыт | N115: 0.89 | P115: 106 | Q115: ПС 35/10 кВ Б. Избищи | R115: 2,5+2,5 | S115: 0.03 | T115: 1.648181818 | U115: 1 | V115: 60 | W115: 0.6481818182 | X115: 0 | Y115: 2.625 | Z115: 1.976818182 | AA115: 1.976818182 | AB115: открыт
A116: 107 | B116: ПС 35/10 кВ Полибино | C116: 2,5+2,5 | D116: 5 | E116: 0.2363636364 | F116: 0 | G116: 0 | H116: 0.2363636364 | I116: 0 | J116: 2.625 | K116: 2.388636364 | L116: 2.388636364 | M116: открыт | N116: 0.93 | P116: 107 | Q116: ПС 35/10 кВ Полибино | R116: 2,5+2,5 | S116: 0.08 | T116: 0.3163636364 | U116: 0 | V116: 0 | W116: 0.3163636364 | X116: 0 | Y116: 2.625 | Z116: 2.308636364 | AA116: 2.308636364 | AB116: открыт
A117: 108 | B117: ПС 35/10 кВ Дубрава | C117: 2,5+2,5 | D117: 5 | E117: 0.33 | F117: 0 | G117: 0 | H117: 0.33 | I117: 0 | J117: 2.625 | K117: 2.295 | L117: 2.295 | M117: открыт | N117: 0.77 | P117: 108 | Q117: ПС 35/10 кВ Дубрава | R117: 2,5+2,5 | S117: 0.01 | T117: 0.34 | U117: 0 | V117: 0 | W117: 0.34 | X117: 0 | Y117: 2.625 | Z117: 2.285 | AA117: 2.285 | AB117: открыт
A118: 109 | B118: ПС 35/10 кВ Хрущево | C118: 2,5+2,5 | D118: 5 | E118: 0.5090909091 | F118: 0 | G118: 0 | H118: 0.5090909091 | I118: 0 | J118: 2.625 | K118: 2.115909091 | L118: 2.115909091 | M118: открыт | N118: 0.78 | P118: 109 | Q118: ПС 35/10 кВ Хрущево | R118: 2,5+2,5 | S118: 0.01 | T118: 0.5190909091 | U118: 0 | V118: 0 | W118: 0.5190909091 | X118: 0 | Y118: 2.625 | Z118: 2.105909091 | AA118: 2.105909091 | AB118: открыт
A119: 110 | B119: ПС 35/10 кВ Б. Верх | C119: 2,5+2,5 | D119: 5 | E119: 0.7454545455 | F119: 0 | G119: 0 | H119: 0.7454545455 | I119: 0 | J119: 2.625 | K119: 1.879545455 | L119: 1.879545455 | M119: открыт | N119: 0.9 | P119: 110 | Q119: ПС 35/10 кВ Б. Верх | R119: 2,5+2,5 | S119: 0.03 | T119: 0.7754545455 | U119: 0 | V119: 0 | W119: 0.7754545455 | X119: 0 | Y119: 2.625 | Z119: 1.849545455 | AA119: 1.849545455 | AB119: открыт
A120: 111 | B120: ПС 35/10 кВ Головинщино | C120: 2,5+2,5 | D120: 5 | E120: 0.6 | F120: 0 | G120: 0 | H120: 0.6 | I120: 0 | J120: 2.625 | K120: 2.025 | L120: 2.025 | M120: открыт | N120: 0.9 | P120: 111 | Q120: ПС 35/10 кВ Головинщино | R120: 2,5+2,5 | S120: 0.015 | T120: 0.615 | U120: 0 | V120: 0 | W120: 0.615 | X120: 0 | Y120: 2.625 | Z120: 2.01 | AA120: 2.01 | AB120: открыт
A121: 112 | B121: ПС 35/10 кВ Яблонево | C121: 2,5+2,5 | D121: 5 | E121: 0.5636363636 | F121: 0 | G121: 0 | H121: 0.5636363636 | I121: 0 | J121: 2.625 | K121: 2.061363636 | L121: 2.061363636 | M121: открыт | N121: 0.88 | P121: 112 | Q121: ПС 35/10 кВ Яблоневое | R121: 2,5+2,5 | S121: 2.8 | T121: 3.363636364 | U121: 0 | V121: 0 | W121: 3.363636364 | X121: 0 | Y121: 2.625 | Z121: -0.7386363636 | AA121: -0.7386363636 | AB121: закрыт
A122: 113 | B122: ПС 35/10 кВ Политово | C122: 2,5+2,5 | D122: 5 | E122: 0.7454545455 | F122: 0 | G122: 0 | H122: 0.7454545455 | I122: 0 | J122: 2.625 | K122: 1.879545455 | L122: 1.879545455 | M122: открыт | N122: 0.87 | P122: 113 | Q122: ПС 35/10 кВ Политово | R122: 2,5+2,5 | S122: 0.02 | T122: 0.7654545455 | U122: 0 | V122: 0 | W122: 0.7654545455 | X122: 0 | Y122: 2.625 | Z122: 1.859545455 | AA122: 1.859545455 | AB122: открыт
A123: 114 | B123: ПС 35/10 кВ Комплекс | C123: 4+4 | D123: 8 | E123: 0.9090909091 | F123: 1 | G123: 120 | H123: -0.09090909091 | I123: 0 | J123: 4.2 | K123: 4.290909091 | L123: 4.290909091 | M123: открыт | N123: 0.9 | P123: 114 | Q123: ПС 35/10 кВ Комплекс | R123: 4+4 | T123: 0.9090909091 | U123: 1 | V123: 120 | W123: -0.09090909091 | X123: 0 | Y123: 4.2 | Z123: 4.290909091 | AA123: 4.290909091 | AB123: открыт
A124: 115 | B124: ПС 35/10 кВ № 1 | C124: 4+4 | D124: 8 | E124: 3.427 | F124: 0 | G124: 0 | H124: 3.427 | I124: 0 | J124: 4.2 | K124: 0.773 | L124: 0.773 | M124: открыт | N124: 0.98 | P124: 115 | Q124: ПС 35/10 кВ № 1 | R124: 4+4 | T124: 3.427 | U124: 0 | V124: 0 | W124: 3.427 | X124: 0 | Y124: 4.2 | Z124: 0.773 | AA124: 0.773 | AB124: закрыт
A125: 116 | B125: ПС 35/6 кВ № 2 | C125: 1+1+1 | D125: 3 | E125: =((150*6.6)/1000)*1.73 -> 1.7127 | F125: 0 | G125: 0 | H125: 1.7127 | I125: 0 | J125: 1.05 | K125: -0.6627 | L125: -0.6627 | M125: закрыт | N125: 0.915 | P125: 116 | Q125: ПС 35/6 кВ № 2 | R125: 1+1+1 | S125: 0.09 | T125: 1.8027 | U125: 0 | V125: 0 | W125: 1.8027 | X125: 0 | Y125: 1.05 | Z125: -0.7527 | AA125: -0.7527 | AB125: закрыт
A126: 117 | B126: ПС 35/10 кВ № 3 | C126: 2,5+2,5 | D126: 5 | E126: 1.831 | F126: 0.52 | G126: 75 | H126: 1.311 | I126: 0 | J126: =2.5*1.05 -> 2.625 | K126: 1.314 | L126: 1.314 | M126: * | N126: 0.96 | P126: 117 | Q126: ПС 35/10 кВ № 3 | R126: 2,5+2,5 | S126: 1.45 | T126: 3.281 | U126: 0.52 | V126: 75 | W126: 2.761 | X126: 0 | Y126: 2.625 | Z126: -0.136 | AA126: -0.136 | AB126: *
A127: 118 | B127: ПС 35/6 кВ № 4 | C127: 4+4 | D127: 8 | E127: 2.423 | F127: 0.82 | G127: 70 | H127: 1.603 | I127: 0 | J127: 4.2 | K127: 2.597 | L127: 2.597 | M127: * | N127: 0.91 | P127: 118 | Q127: ПС 35/6 кВ № 4 | R127: 4+4 | S127: 0.24 | T127: 2.663 | U127: 0.82 | V127: 70 | W127: 1.843 | X127: 0 | Y127: 4.2 | Z127: 2.357 | AA127: 2.357 | AB127: *
A128: 119 | B128: ПС 35/6 кВ Грязи-город | C128: 6,3+5,6 | D128: 11.9 | E128: 4.5 | F128: 0 | G128: 0 | H128: 4.5 | I128: 0 | J128: =5.6*1.05 -> 5.88 | K128: 1.38 | L128: 1.38 | M128: открыт | N128: 0.95 | P128: 119 | Q128: ПС 35/6 кВ Грязи-город | R128: 6,3+5,6 | S128: 0.36 | T128: 4.86 | U128: 0 | V128: 0 | W128: 4.86 | X128: 0 | Y128: 5.88 | Z128: 1.02 | AA128: 1.02 | AB128: открыт
A129: 120 | B129: ПС 35/10 кВ Бутырки | C129: 5,6+4 | D129: 9.6 | E129: 6.5 | F129: 0 | G129: 0 | H129: 6.5 | I129: 0 | J129: 4.2 | K129: -2.3 | L129: -2.3 | M129: закрыт | N129: 0.95 | P129: 120 | Q129: ПС 35/10 кВ Бутырки | R129: 5,6+4 | S129: 2.28 | T129: 8.78 | U129: 0 | V129: 0 | W129: 8.78 | X129: 0 | Y129: 4.2 | Z129: -4.58 | AA129: -4.58 | AB129: закрыт
A130: 121 | B130: ПС 35/10 кВ Ярлуково | C130: 3,2+4 | D130: 7.2 | E130: =((91*10+123*10.4)/1000)*1.73 -> 3.787316 | F130: 0.93 | G130: 160 | H130: 2.857316 | I130: 0 | J130: =3.2*1.05 -> 3.36 | K130: 0.502684 | L130: 0.502684 | M130: открыт | N130: 0.922 | P130: 121 | Q130: ПС 35/10 кВ Ярлуково | R130: 3,2+4 | S130: 0.88 | T130: 4.667316 | U130: 0.93 | V130: 160 | W130: 3.737316 | X130: 0 | Y130: 3.36 | Z130: -0.377316 | AA130: -0.377316 | AB130: закрыт
A131: 122 | B131: ПС 35/10 кВ Княжья Байгора | C131: 1,6+1,6 | D131: 3.2 | E131: =((16+10.6+12*10.4)/1000)*1.73 -> 0.261922 | F131: 0.094 | G131: 130 | H131: 0.167922 | I131: 0 | J131: =1.6*1.05 -> 1.68 | K131: 1.512078 | L131: 1.512078 | M131: открыт | N131: 0.888 | P131: 122 | Q131: ПС 35/10 кВ Княжья Байгора | R131: 1,6+1,6 | S131: 0.1 | T131: 0.361922 | U131: 0.094 | V131: 130 | W131: 0.267922 | X131: 0 | Y131: 1.68 | Z131: 1.412078 | AA131: 1.412078 | AB131: открыт
A132: 123 | B132: ПС 35/10 кВ Правда | C132: 4+2,5 | D132: 6.5 | E132: =((50*10.6+3*10.3)/1000)*1.73 -> 0.970357 | F132: 0.5 | G132: 100 | H132: 0.470357 | I132: 0 | J132: =2.5*1.05 -> 2.625 | K132: 2.154643 | L132: 2.154643 | M132: открыт | N132: 0.909 | P132: 123 | Q132: ПС 35/10 кВ Правда | R132: 4+2,5 | S132: 0.05 | T132: 1.020357 | U132: 0.5 | V132: 100 | W132: 0.520357 | X132: 0 | Y132: 2.625 | Z132: 2.104643 | AA132: 2.104643 | AB132: открыт
A133: 124 | B133: ПС 35/10 кВ Красная Дубрава | C133: 2,5+2,5 | D133: 5 | E133: 0.643 | F133: 0.09 | G133: 140 | H133: =E133-F133 -> 0.553 | I133: 0 | J133: =2.5*1.05 -> 2.625 | K133: 2.072 | L133: 2.072 | M133: открыт | N133: 0.98 | P133: 124 | Q133: ПС 35/10 кВ Красная Дубрава | R133: 2,5+2,5 | S133: 0.32 | T133: =S133+E133 -> 0.963 | U133: 0.09 | V133: 140 | W133: 0.873 | X133: 0 | Y133: 2.625 | Z133: 1.752 | AA133: 1.752 | AB133: открыт
A134: 125 | B134: ПС 35/10 кВ Матыра | C134: 4+3,2 | D134: 7.2 | E134: 3.272 | F134: 0 | G134: 0 | H134: 3.272 | I134: 0 | J134: =3.2*1.05 -> 3.36 | K134: 0.088 | L134: 0.088 | M134: открыт | N134: 0.95 | P134: 125 | Q134: ПС 35/10 кВ Матыра | R134: 4+3,2 | S134: 4.06 | T134: 7.332 | U134: 0 | V134: 0 | W134: 7.332 | X134: 0 | Y134: 3.36 | Z134: -3.972 | AA134: -3.972 | AB134: закрыт
A135: 126 | B135: ПС 35/10 кВ Вперед | C135: 4+4 | D135: 8 | E135: =((21*10.4+16*11)/1000)*1.73 -> 0.682312 | F135: 0.2 | G135: 80 | H135: 0.482312 | I135: 0 | J135: 4.2 | K135: 3.717688 | L135: 3.717688 | M135: открыт | N135: 0.956 | P135: 126 | Q135: ПС 35/10 кВ Вперед | R135: 4+4 | S135: 0.13 | T135: 0.812312 | U135: 0.2 | V135: 80 | W135: 0.612312 | X135: 0 | Y135: 4.2 | Z135: 3.587688 | AA135: 3.587688 | AB135: открыт
A136: 127 | B136: ПС 35/10 кВ Малей | C136: 4+2,5 | D136: 6.5 | E136: =((36*10.4+5*10.2)/1000)*1.73 -> 0.735942 | F136: 0.23 | G136: 70 | H136: 0.505942 | I136: 0 | J136: =2.5*1.05 -> 2.625 | K136: 2.119058 | L136: 2.119058 | M136: открыт | N136: 0.89 | P136: 127 | Q136: ПС 35/10 кВ Малей | R136: 4+2,5 | S136: 0.6 | T136: 1.335942 | U136: 0.23 | V136: 70 | W136: 1.105942 | X136: 0 | Y136: 2.625 | Z136: 1.519058 | AA136: 1.519058 | AB136: открыт
A137: 128 | B137: ПС 35/10 кВ СХТ | C137: 2,5+1,6 | D137: 4.1 | E137: =((72*10.2+16*10.5)/1000)*1.73 -> 1.561152 | F137: 0 | G137: 0 | H137: 1.561152 | I137: 0 | J137: =1.6*1.05 -> 1.68 | K137: 0.118848 | L137: 0.118848 | M137: открыт | N137: 0.923 | P137: 128 | Q137: ПС 35/10 кВ СХТ | R137: 2,5+1,6 | S137: 0.12 | T137: 1.681152 | U137: 0 | V137: 0 | W137: 1.681152 | X137: 0 | Y137: 1.68 | Z137: -0.001152 | AA137: -0.001152 | AB137: закрыт
A138: 129 | B138: ПС 35/10 кВ Сошки | C138: 4+4 | D138: 8 | E138: =((32*10.7+10*10.6)/1000)*1.73 -> 0.775732 | F138: 0.3 | G138: 80 | H138: 0.475732 | I138: 0 | J138: 4.2 | K138: 3.724268 | L138: 3.724268 | M138: открыт | N138: 0.947 | P138: 129 | Q138: ПС 35/10 кВ Сошки | R138: 4+4 | S138: 0.06 | T138: 0.835732 | U138: 0.3 | V138: 80 | W138: 0.535732 | X138: 0 | Y138: 4.2 | Z138: 3.664268 | AA138: 3.664268 | AB138: открыт
A139: 130 | B139: ПС 35/6 кВ Таволжанка | C139: 4+4 | D139: 8 | E139: 3.888 | F139: 0 | G139: 0 | H139: 3.888 | I139: 0 | J139: 4.2 | K139: 0.312 | L139: 0.312 | M139: открыт | N139: 0.95 | P139: 130 | Q139: ПС 35/6 кВ Таволжанка | R139: 4+4 | S139: 1.87 | T139: 5.758 | U139: 0 | V139: 0 | W139: 5.758 | X139: 0 | Y139: 4.2 | Z139: -1.558 | AA139: -1.558 | AB139: закрыт
A140: 131 | B140: ПС 35/10 кВ Трубетчино | C140: 2,5+2,5 | D140: 5 | E140: =((65*10.5)/1000)*1.73 -> 1.180725 | F140: 0 | G140: 0 | H140: 1.180725 | I140: 0 | J140: =2.5*1.05 -> 2.625 | K140: 1.444275 | L140: 1.444275 | M140: * | N140: 0.879 | P140: 131 | Q140: ПС 35/10 кВ Трубетчино | R140: 2,5+2,5 | S140: 0.08 | T140: 1.260725 | U140: 0 | V140: 0 | W140: 1.260725 | X140: 0 | Y140: 2.625 | Z140: 1.364275 | AA140: 1.364275 | AB140: открыт
A141: 132 | B141: ПС 35/10 кВ Ратчино | C141: 2,5+2,5 | D141: 5 | E141: =((29*10.4+37*10.5)/1000)*1.73 -> 1.193873 | F141: 0 | G141: 0 | H141: 1.193873 | I141: 0 | J141: =2.5*1.05 -> 2.625 | K141: 1.431127 | L141: 1.431127 | M141: * | N141: 0.896 | P141: 132 | Q141: ПС 35/10 кВ Ратчино | R141: 2,5+2,5 | S141: 0.05 | T141: 1.243873 | U141: 0 | V141: 0 | W141: 1.243873 | X141: 0 | Y141: 2.625 | Z141: 1.381127 | AA141: 1.381127 | AB141: *
A142: 133 | B142: ПС 35/10 кВ Каликино | C142: 3,2+3,2 | D142: 6.4 | E142: 1.55 | F142: 0 | G142: 0 | H142: 1.55 | I142: 0 | J142: =3.2*1.05 -> 3.36 | K142: 1.81 | L142: 1.81 | M142: * | N142: 0.88 | P142: 133 | Q142: ПС 35/10 кВ Каликино | R142: 3,2+3,2 | S142: 0.08 | T142: 1.63 | U142: 0 | V142: 0 | W142: 1.63 | X142: 0 | Y142: 3.36 | Z142: 1.73 | AA142: 1.73 | AB142: *
A143: 134 | B143: ПС 35/10 кВ Борисовка | C143: 4+2,5 | D143: 6.5 | E143: 2.329 | F143: 0 | G143: 0 | H143: 2.329 | I143: 0 | J143: =2.5*1.05 -> 2.625 | K143: 0.296 | L143: 0.296 | M143: открыт | N143: 0.93 | P143: 134 | Q143: ПС 35/10 кВ Борисовка | R143: 4+2,5 | S143: 1.68 | T143: 4.009 | U143: 0 | V143: 0 | W143: 4.009 | X143: 0 | Y143: 2.625 | Z143: -1.384 | AA143: -1.384 | AB143: закрыт
A144: 135 | B144: ПС 35/10 кВ Введенка | C144: 4+4 | D144: 8 | E144: 3.393 | F144: 0.05 | G144: 50 | H144: 3.343 | I144: 0 | J144: 4.2 | K144: 0.857 | L144: 0.857 | M144: * | N144: 0.95 | P144: 135 | Q144: ПС 35/10 кВ Введенка | R144: 4+4 | S144: 5.82 | T144: 9.213 | U144: 0.05 | V144: 50 | W144: 9.163 | X144: 0 | Y144: 4.2 | Z144: -4.963 | AA144: -4.963 | AB144: закрыт
A145: 136 | B145: ПС 35/10 кВ Грязное | C145: 4+4 | D145: 8 | E145: =((8*10+50*10)/1000)*1.73 -> 1.0034 | F145: 0 | G145: 0 | H145: 1.0034 | I145: 0 | J145: 4.2 | K145: 3.1966 | L145: 3.1966 | M145: * | N145: 0.948 | P145: 136 | Q145: ПС 35/10 кВ Грязное | R145: 4+4 | S145: 1.14 | T145: 2.1434 | U145: 0 | V145: 0 | W145: 2.1434 | X145: 0 | Y145: 4.2 | Z145: 2.0566 | AA145: 2.0566 | AB145: *
A146: 137 | B146: ПС 35/10 кВ Борино | C146: 4+4 | D146: 8 | E146: 3.96 | F146: 0.81 | G146: 75 | H146: 3.15 | I146: 0 | J146: 4.2 | K146: 1.05 | L146: 1.05 | M146: * | N146: 0.88 | P146: 137 | Q146: ПС 35/10 кВ Борино | R146: 4+4 | S146: 0.52 | T146: 4.48 | U146: 0.81 | V146: 75 | W146: 3.67 | X146: 0 | Y146: =4*1.05 -> 4.2 | Z146: 0.53 | AA146: 0.53 | AB146: *
A147: 138 | B147: ПС 35/10 кВ Частая Дубрава | C147: 2,5+2,5 | D147: 5 | E147: =((15*10.5+50*10.6)/1000)*1.73 -> 1.189375 | F147: 1.25 | G147: 115 | H147: -0.060625 | I147: 0 | J147: =2.5*1.05 -> 2.625 | K147: 2.685625 | L147: 2.685625 | M147: * | N147: 0.905 | P147: 138 | Q147: ПС 35/10 кВ Частая Дубрава | R147: 2,5+2,5 | S147: 3.13 | T147: 4.319375 | U147: 1.25 | V147: 115 | W147: 3.069375 | X147: 0 | Y147: 2.625 | Z147: -0.444375 | AA147: -0.444375 | AB147: открыт
A148: 139 | B148: ПС 35/10 кВ Троицкая | C148: 2,5+4 | D148: 6.5 | E148: 2.343 | F148: 0.04 | G148: 30 | H148: 2.303 | I148: 0 | J148: =2.5*1.05 -> 2.625 | K148: 0.322 | L148: 0.322 | M148: * | N148: 0.61 | P148: 139 | Q148: ПС 35/10 кВ Троицкая | R148: 2,5+4 | S148: 0.56 | T148: 2.903 | U148: 0.04 | V148: 30 | W148: 2.863 | X148: 0 | Y148: 2.625 | Z148: -0.238 | AA148: -0.238 | AB148: *
A149: 140 | B149: ПС 35/6 кВ Вешаловка | C149: 2,5+2,5 | D149: 5 | E149: =((45*5.8+25*5.9)/1000)*1.73 -> 0.706705 | F149: 0 | G149: 0 | H149: 0.706705 | I149: 0 | J149: =2.5*1.05 -> 2.625 | K149: 1.918295 | L149: 1.918295 | M149: * | N149: 0.942 | P149: 140 | Q149: ПС 35/6 кВ Вешаловка | R149: 2,5+2,5 | S149: 0.16 | T149: 0.866705 | U149: 0 | V149: 0 | W149: 0.866705 | X149: 0 | Y149: 2.625 | Z149: 1.758295 | AA149: 1.758295 | AB149: *
A150: 141 | B150: ПС 35/10 кВ Пружинки | C150: 2,5+2,5 | D150: 5 | E150: 0.7 | F150: 0 | G150: 0 | H150: 0.7 | I150: 0 | J150: =2.5*1.05 -> 2.625 | K150: 1.925 | L150: 1.925 | M150: * | N150: 0.937 | P150: 141 | Q150: ПС 35/10 кВ Пружинки | R150: 2,5+2,5 | S150: 0.1 | T150: 0.8 | U150: 0 | V150: 0 | W150: 0.8 | X150: 0 | Y150: 2.625 | Z150: 1.825 | AA150: 1.825 | AB150: *
A151: 142 | B151: ПС 35/10 кВ Стебаево | C151: 2,5+2,5 | D151: 5 | E151: 0.79 | F151: 0.26 | G151: 80 | H151: 0.53 | I151: 0 | J151: =2.5*1.05 -> 2.625 | K151: 2.095 | L151: 2.095 | M151: * | N151: 0.926 | P151: 142 | Q151: ПС 35/10 кВ Стебаево | R151: 2,5+2,5 | S151: 0.31 | T151: 1.1 | U151: 0.26 | V151: 80 | W151: 0.84 | X151: 0 | Y151: 2.625 | Z151: 1.785 | AA151: 1.785 | AB151: *
A152: 143 | B152: ПС 35/10 кВ Хлебопродукты | C152: 6,3+6,3 | D152: 12.6 | E152: 4.199 | F152: 0.36 | G152: 30 | H152: 3.839 | I152: 0 | J152: =6.3*1.05 -> 6.615 | K152: 2.776 | L152: 2.776 | M152: * | N152: 0.91 | P152: 143 | Q152: ПС 35/10 кВ Хлебопродукты | R152: 6,3+6,3 | S152: 0.66 | T152: 4.859 | U152: 0.36 | V152: 30 | W152: 4.499 | X152: 0 | Y152: 6.615 | Z152: 2.116 | AA152: 2.116 | AB152: *
A153: 144 | B153: ПС 35/10 кВ Сенцово | C153: 10+10 | D153: 20 | E153: =(((120+180)*10.6)/1000)*1.73 -> 5.5014 | F153: 0.23 | G153: 40 | H153: 5.2714 | I153: 0 | J153: 10.5 | K153: 5.2286 | L153: 5.2286 | M153: * | N153: 0.95 | P153: 144 | Q153: ПС 35/10 кВ Сенцово | R153: 10+10 | S153: 0.69 | T153: 6.1914 | U153: 0.23 | V153: 40 | W153: 5.9614 | X153: 0 | Y153: 10.5 | Z153: 4.5386 | AA153: 4.5386 | AB153: *
A154: 145 | B154: ПС 35/10 кВ Мясокомбинат | C154: 6,3+6,3 | D154: 12.6 | E154: 4.251 | F154: 1.31 | G154: 60 | H154: 2.941 | I154: 0 | J154: 6.62 | K154: 3.679 | L154: 3.679 | M154: * | N154: 0.88 | P154: 145 | Q154: ПС 35/10 кВ Мясокомбинат | R154: 6,3+6,3 | S154: 0.92 | T154: 5.171 | U154: 1.31 | V154: 60 | W154: 3.861 | X154: 0 | Y154: 6.62 | Z154: 2.759 | AA154: 2.759 | AB154: *
A155: 146 | B155: ПС 35/6 кВ Птицефабрика | C155: 4+4 | D155: 8 | E155: =((40*6.5+150*6.2)/1000)*1.73 -> 2.0587 | F155: 0 | G155: 0 | H155: 2.0587 | I155: 0 | J155: 4.2 | K155: 2.1413 | L155: 2.1413 | M155: * | N155: 0.924 | P155: 146 | Q155: ПС 35/6 кВ Птицефабрика | R155: 4+4 | S155: 2.55 | T155: 4.6087 | U155: 0 | V155: 0 | W155: 4.6087 | X155: 0 | Y155: 4.2 | Z155: -0.4087 | AA155: -0.4087 | AB155: *
A156: 147 | B156: ПС 35/6 кВ Водозабор | C156: 10+10 | D156: 20 | E156: 1.407 | F156: 0 | G156: 0 | H156: 1.407 | I156: 0 | J156: 10.5 | K156: 9.093 | L156: 9.093 | M156: * | N156: 0.87 | P156: 147 | Q156: ПС 35/6 кВ Водозабор | R156: 10+10 | S156: 0.77 | T156: 2.177 | U156: 0 | V156: 0 | W156: 2.177 | X156: 0 | Y156: 10.5 | Z156: 8.323 | AA156: 8.323 | AB156: *
A157: 148 | B157: ПС 35/10 кВ Петровская | C157: 2,5+4 | D157: 6.5 | E157: =((14*10.8+12*10.7)/1000)*1.73 -> 0.483708 | F157: 0 | G157: 0 | H157: 0.483708 | I157: 0 | J157: =2.5*1.05 -> 2.625 | K157: 2.141292 | L157: 2.141292 | M157: открыт | N157: 0.914 | P157: 148 | Q157: ПС 35/10 кВ Петровская | R157: 2,5+4 | S157: 0.01 | T157: 0.493708 | U157: 0 | V157: 0 | W157: 0.493708 | X157: 0 | Y157: 2.625 | Z157: 2.131292 | AA157: 2.131292 | AB157: открыт
A158: 149 | B158: ПС 35/10 кВ Лебедянка | C158: 2,5+2,5 | D158: 5 | E158: =((14*10.7+18*10.7)/1000)*1.73 -> 0.592352 | F158: 0 | G158: 0 | H158: 0.592352 | I158: 0 | J158: =2.5*1.05 -> 2.625 | K158: 2.032648 | L158: 2.032648 | M158: открыт | N158: 0.935 | P158: 149 | Q158: ПС 35/10 кВ Лебедянка | R158: 2,5+2,5 | S158: 0.54 | T158: 1.132352 | U158: 0 | V158: 0 | W158: 1.132352 | X158: 0 | Y158: 2.625 | Z158: 1.492648 | AA158: 1.492648 | AB158: открыт
A159: 150 | B159: ПС 35/10 кВ Новочеркутино | C159: 4+4 | D159: 8 | E159: =((27*10.4+361)/1000)*1.73 -> 1.110314 | F159: 0 | G159: 0 | H159: 1.110314 | I159: 0 | J159: 4.2 | K159: 3.089686 | L159: 3.089686 | M159: открыт | N159: 0.939 | P159: 150 | Q159: ПС 35/10 кВ Новочеркутино | R159: 4+4 | S159: 0.4 | T159: 1.510314 | U159: 0 | V159: 0 | W159: 1.510314 | X159: 0 | Y159: 4.2 | Z159: 2.689686 | AA159: 2.689686 | AB159: открыт
A160: 151 | B160: ПС 35/10 кВ Ивановка | C160: 2,5+2,5 | D160: 5 | E160: =((5*10.5+42*10.4)/1000)*1.73 -> 0.846489 | F160: 0 | G160: 0 | H160: 0.846489 | I160: 0 | J160: =2.5*1.05 -> 2.625 | K160: 1.778511 | L160: 1.778511 | M160: открыт | N160: 0.802 | P160: 151 | Q160: ПС 35/10 кВ Ивановка | R160: 2,5+2,5 | S160: 0.07 | T160: 0.916489 | U160: 0 | V160: 0 | W160: 0.916489 | X160: 0 | Y160: 2.625 | Z160: 1.708511 | AA160: 1.708511 | AB160: открыт
A161: 152 | B161: ПС 35/10 кВ Поддубровка | C161: 2,5+2,5 | D161: 5 | E161: =((30*10.6+33*10.7)/1000)*1.73 -> 1.161003 | F161: 0.2 | G161: 60 | H161: 0.961003 | I161: 0 | J161: =2.5*1.05 -> 2.625 | K161: 1.663997 | L161: 1.663997 | M161: открыт | N161: 0.895 | P161: 152 | Q161: ПС 35/10 кВ Поддубровка | R161: 2,5+2,5 | S161: 0.19 | T161: 1.351003 | U161: 0.2 | V161: 60 | W161: 1.151003 | X161: 0 | Y161: 2.625 | Z161: 1.473997 | AA161: 1.473997 | AB161: открыт
A162: 153 | B162: ПС 35/10 кВ Плавица | C162: 1,6+1,6 | D162: 3.2 | E162: =((5*10.1+16*10.2)/1000)*1.73 -> 0.369701 | F162: 0 | G162: 0 | H162: 0.369701 | I162: 0 | J162: =1.6*1.05 -> 1.68 | K162: 1.310299 | L162: 1.310299 | M162: открыт | N162: 0.936 | P162: 153 | Q162: ПС 35/10 кВ Плавица | R162: 1,6+1,6 | S162: 0.01 | T162: 0.379701 | U162: 0 | V162: 0 | W162: 0.379701 | X162: 0 | Y162: 1.68 | Z162: 1.300299 | AA162: 1.300299 | AB162: открыт
A163: 154 | B163: ПС 35/10 кВ Паршиновка | C163: 1,6+2,5 | D163: 4.1 | E163: =((12*10.5)/1000)*1.73 -> 0.21798 | F163: 0 | G163: 0 | H163: 0.21798 | I163: 0 | J163: 1.68 | K163: 1.46202 | L163: 1.46202 | M163: открыт | N163: 0.913 | P163: 154 | Q163: ПС 35/10 кВ Паршиновка | R163: 1,6+2,5 | S163: 0.007 | T163: 0.22498 | U163: 0 | V163: 0 | W163: 0.22498 | X163: 0 | Y163: 1.68 | Z163: 1.45502 | AA163: 1.45502 | AB163: открыт
A164: 155 | B164: ПС 35/10 кВ Талицкий Чамлык | C164: 3,2+4 | D164: 7.2 | E164: =((46*10.1+19*10.6)/1000)*1.73 -> 1.15218 | F164: 0 | G164: 0 | H164: 1.15218 | I164: 0 | J164: =3.2*1.05 -> 3.36 | K164: 2.20782 | L164: 2.20782 | M164: открыт | N164: 0.898 | P164: 155 | Q164: ПС 35/10 кВ Талицкий Чамлык | R164: 3,2+4 | S164: 0.01 | T164: 1.16218 | U164: 0 | V164: 0 | W164: 1.16218 | X164: 0 | Y164: 3.36 | Z164: 2.19782 | AA164: 2.19782 | AB164: открыт
A165: 156 | B165: ПС 35/10 кВ Демшинка | C165: 2,5+2,5 | D165: 5 | E165: =((3*10.6+17*10.6)/1000)*1.73 -> 0.36676 | F165: 0 | G165: 0 | H165: =E165-F165 -> 0.36676 | I165: 0 | J165: =2.5*1.05 -> 2.625 | K165: =J165-I165-H165 -> 2.25824 | L165: =K165 -> 2.25824 | M165: открыт | N165: 0.947 | P165: 156 | Q165: ПС 35/10 кВ Демшинка | R165: 2,5+2,5 | S165: 0.3 | T165: =S165+E165 -> 0.66676 | U165: 0 | V165: 0 | W165: 0.66676 | X165: 0 | Y165: 2.625 | Z165: 1.95824 | AA165: 1.95824 | AB165: открыт
A166: 157 | B166: ПС 35/10 кВ Березняговка | C166: 1,6+1,6 | D166: 3.2 | E166: =((27*10.2+6*10.9)/1000)*1.73 -> 0.589584 | F166: 0.163 | G166: 70 | H166: 0.426584 | I166: 0 | J166: =1.6*1.05 -> 1.68 | K166: 1.253416 | L166: 1.253416 | M166: открыт | N166: 0.88 | P166: 157 | Q166: ПС 35/10 кВ Березняговка | R166: 1,6+1,6 | S166: 0.03 | T166: 0.619584 | U166: 0.163 | V166: 70 | W166: 0.456584 | X166: 0 | Y166: 1.68 | Z166: 1.223416 | AA166: 1.223416 | AB166: открыт
A167: 158 | B167: ПС 35/10 кВ Дмитриевка | C167: 2,5+2,5 | D167: 5 | E167: =((23*10.5+9*10.7)/1000)*1.73 -> 0.584394 | F167: 0.09 | G167: 70 | H167: 0.494394 | I167: 0 | J167: =2.5*1.05 -> 2.625 | K167: 2.130606 | L167: 2.130606 | M167: открыт | N167: 0.963 | P167: 158 | Q167: ПС 35/10 кВ Дмитриевка | R167: 2,5+2,5 | S167: 0.01 | T167: 0.594394 | U167: 0.09 | V167: 70 | W167: 0.504394 | X167: 0 | Y167: 2.625 | Z167: 2.120606 | AA167: 2.120606 | AB167: открыт
A168: 159 | B168: ПС 35/10 кВ Пашково | C168: 2,5+2,5 | D168: 5 | E168: =((62*10.6+45*10.5)/1000)*1.73 -> 1.954381 | F168: 0.364 | G168: 60 | H168: 1.590381 | I168: 0 | J168: =2.5*1.05 -> 2.625 | K168: 1.034619 | L168: 1.034619 | M168: открыт | N168: 0.958 | P168: 159 | Q168: ПС 35/10 кВ Пашково | R168: 2,5+2,5 | S168: 0.02 | T168: 1.974381 | U168: 0.364 | V168: 60 | W168: =T168-U168 -> 1.610381 | X168: 0 | Y168: 2.625 | Z168: =Y168-X168-W168 -> 1.014619 | AA168: =Z168 -> 1.014619 | AB168: открыт
A169: 160 | B169: ПС 35/10 кВ Московка | C169: 1,6+1,6 | D169: 3.2 | E169: =((5*10.6+26*10.5)/1000)*1.73 -> 0.56398 | F169: 0.073 | G169: 30 | H169: 0.49098 | I169: 0 | J169: =1.6*1.05 -> 1.68 | K169: 1.18902 | L169: 1.18902 | M169: открыт | N169: 0.916 | P169: 160 | Q169: ПС 35/10 кВ Московка | R169: 1,6+1,6 | S169: 0.06 | T169: 0.62398 | U169: 0.073 | V169: 30 | W169: 0.55098 | X169: 0 | Y169: 1.68 | Z169: 1.12902 | AA169: 1.12902 | AB169: открыт
A170: 161 | B170: ПС 35/10 кВ Бочиновка | C170: 4+4 | D170: 8 | E170: =((74*10.7+44*10.8)/1000)*1.73 -> 2.19191 | F170: 0.473 | G170: 150 | H170: 1.71891 | I170: 0 | J170: 4.2 | K170: 2.48109 | L170: 2.48109 | M170: открыт | N170: 0.886 | P170: 161 | Q170: ПС 35/10 кВ Бочиновка | R170: 4+4 | S170: 1.62 | T170: 3.81191 | U170: 0.473 | V170: 150 | W170: 3.33891 | X170: 0 | Y170: 4.2 | Z170: 0.86109 | AA170: 0.86109 | AB170: открыт
A171: 162 | B171: ПС 35/10 кВ Федоровка | C171: 2,5+2,5 | D171: 5 | E171: =((27*10.5+2*10.6)/1000)*1.73 -> 0.527131 | F171: 0.2 | G171: 150 | H171: 0.327131 | I171: 0 | J171: =2.5*1.05 -> 2.625 | K171: 2.297869 | L171: 2.297869 | M171: открыт | N171: 0.91 | P171: 162 | Q171: ПС 35/10 кВ Федоровка | R171: 2,5+2,5 | S171: 0.14 | T171: 0.667131 | U171: 0.2 | V171: 150 | W171: 0.467131 | X171: 0 | Y171: 2.625 | Z171: 2.157869 | AA171: 2.157869 | AB171: открыт
A172: 163 | B172: ПС 35/10 кВ Куликово | C172: 2,5+2,5 | D172: 5 | E172: =((22*10.5+15*10.5)/1000)*1.73 -> 0.672105 | F172: 0 | G172: 0 | H172: 0.672105 | I172: 0 | J172: =2.5*1.05 -> 2.625 | K172: 1.952895 | L172: 1.952895 | M172: открыт | N172: 0.949 | P172: 163 | Q172: ПС 35/10 кВ Куликово | R172: 2,5+2,5 | S172: 0.04 | T172: 0.712105 | U172: 0 | V172: 0 | W172: 0.712105 | X172: 0 | Y172: 2.625 | Z172: 1.912895 | AA172: 1.912895 | AB172: открыт
A173: 164 | B173: ПС 35/10 кВ Конь-Колодезь | C173: 2,5+2,5 | D173: 5 | E173: =((22*10.5+50*10.5)/1000)*1.73 -> 1.30788 | F173: 0 | G173: 0 | H173: 1.30788 | I173: 0 | J173: =2.5*1.05 -> 2.625 | K173: 1.31712 | L173: 1.31712 | M173: * | N173: 0.883 | P173: 164 | Q173: ПС 35/10 кВ Конь-Колодезь | R173: 2,5+2,5 | S173: 0.14 | T173: 1.44788 | U173: 0 | V173: 0 | W173: 1.44788 | X173: 0 | Y173: 2.625 | Z173: 1.17712 | AA173: 1.17712 | AB173: *
A174: 165 | B174: ПС 35/10 кВ Дмитряшевка | C174: 2,5+2,5 | D174: 5 | E174: =((9*10.7+12*10.7)/1000)*1.73 -> 0.388731 | F174: 0 | G174: 0 | H174: 0.388731 | I174: 0 | J174: =2.5*1.05 -> 2.625 | K174: 2.236269 | L174: 2.236269 | M174: * | N174: 0.784 | P174: 165 | Q174: ПС 35/10 кВ Дмитряшевка | R174: 2,5+2,5 | S174: 0.07 | T174: 0.458731 | U174: 0 | V174: 0 | W174: 0.458731 | X174: 0 | Y174: 2.625 | Z174: 2.166269 | AA174: 2.166269 | AB174: *
A175: 166 | B175: ПС 35/10 кВ Речная | C175: 4+4 | D175: 8 | E175: =((81*10.3+20*10.3)/1000)*1.73 -> 1.799719 | F175: 0 | G175: 0 | H175: 1.799719 | I175: 0 | J175: 4.2 | K175: 2.400281 | L175: 2.400281 | M175: * | N175: 0.863 | P175: 166 | Q175: ПС 35/10 кВ Речная | R175: 4+4 | S175: 1.26 | T175: 3.059719 | U175: 0 | V175: 0 | W175: 3.059719 | X175: 0 | Y175: 4.2 | Z175: 1.140281 | AA175: 1.140281 | AB175: *
A176: 167 | B176: ПС 35/10 кВ Негачевка | C176: 2,5+2,5 | D176: 5 | E176: =((9*10.6+12*10.6)/1000)*1.73 -> 0.385098 | F176: 0 | G176: 0 | H176: 0.385098 | I176: 0 | J176: =2.5*1.05 -> 2.625 | K176: 2.239902 | L176: 2.239902 | M176: * | N176: 0.852 | P176: 167 | Q176: ПС 35/10 кВ Негачевка | R176: 2,5+2,5 | S176: 0.01 | T176: 0.395098 | U176: 0 | V176: 0 | W176: 0.395098 | X176: 0 | Y176: 2.625 | Z176: 2.229902 | AA176: 2.229902 | AB176: *
A177: 168 | B177: ПС 35/10 кВ Карамышево | C177: 10+10 | D177: 20 | E177: =((43*10.4+10*10.5)/1000)*1.73 -> 0.955306 | F177: 0 | G177: 0 | H177: 0.955306 | I177: 0 | J177: 10.5 | K177: 9.544694 | L177: 9.544694 | M177: открыт | N177: 0.969 | P177: 168 | Q177: ПС 35/10 кВ Карамышево | R177: 10+10 | S177: 0.24 | T177: 1.195306 | U177: 0 | V177: 0 | W177: 1.195306 | X177: 0 | Y177: 10.5 | Z177: 9.304694 | AA177: =Z177 -> 9.304694 | AB177: открыт
A178: 169 | B178: ПС 35/10 кВ Тюшевка | C178: 1,6+1,6 | D178: 3.2 | E178: =((42*10.6+10*10.6)/1000)*1.73 -> 0.953576 | F178: 0.04 | G178: 110 | H178: 0.913576 | I178: 0 | J178: =1.6*1.05 -> 1.68 | K178: 0.766424 | L178: 0.766424 | M178: * | N178: 1 | P178: 169 | Q178: ПС 35/10 кВ Тюшевка | R178: 1,6+1,6 | T178: 0.953576 | U178: 0.04 | V178: 110 | W178: 0.913576 | X178: 0 | Y178: 1.68 | Z178: 0.766424 | AA178: 0.766424 | AB178: *
A179: 170 | B179: ПС 35/10 кВ Сселки | C179: 10+10 | D179: 20 | E179: 0.322 | F179: 0 | G179: 0 | H179: 0.322 | I179: 0 | J179: =10*1.05 -> 10.5 | K179: =J179-I179-H179 -> 10.178 | L179: =K179 -> 10.178 | M179: открыт | N179: 0.99 | P179: 170 | Q179: ПС 35/10 кВ Сселки | R179: 10+10 | S179: 5.17 | T179: 5.492 | U179: 0 | V179: 0 | W179: 5.492 | X179: 0 | Y179: =10*1.05 -> 10.5 | Z179: =Y179-X179-W179 -> 5.008 | AA179: =Z179 -> 5.008 | AB179: открыт
A180: Двух- и более трансформаторные ПС (на три уровня напряжения) | P180: Двух- и более трансформаторные ПС (на три уровня напряжения)
A181: 171 | B181: ПС 110/35/10 кВ Тербуны-110 | C181: 10+10 | D181: 20 | E181: =E182+E183 -> 6.27 | F181: =F182+F183 -> 0.9 | H181: =E181-F181 -> 5.37 | I181: 0 | J181: 10.5 | K181: =J181-I181-H181 -> 5.13 | L181: =MIN(K181:K183) -> 5.13 | M181: открыт | P181: 171 | Q181: ПС 110/35/10 кВ Тербуны-110 | R181: 10+10 | S181: =S182+S183 -> 1.538 | T181: =T182+T183 -> 7.808 | U181: =U182+U183 -> 0.9 | W181: =T181-U181 -> 6.908 | X181: 0 | Y181: 10.5 | Z181: 3.592 | AA181: =MIN(Z181:Z183) -> 3.592 | AB181: открыт
B182: Ном. Мощность СН, МВА | C182: 10+10 | E182: 0.93 | F182: 0.9 | G182: 30 | H182: 0.03 | I182: 0 | J182: 10.5 | K182: =J182-I182-H182 -> 10.47 | N182: 0.97 | Q182: Ном. Мощность СН, МВА | R182: 10+10 | S182: =S63+S68+S73+S15+S18 -> 0.308 | T182: =S182+E182 -> 1.238 | U182: 0.9 | V182: 30 | W182: =T182-U182 -> 0.338 | X182: 0 | Y182: 10.5 | Z182: 10.162
B183: Ном. мощность НН, МВА | C183: 10+10 | E183: 5.34 | F183: 0 | G183: 0 | H183: 5.34 | I183: 0 | J183: 10.5 | K183: 5.16 | N183: 0.93 | Q183: Ном. мощность НН, МВА | R183: 10+10 | S183: 1.23 | T183: =S183+E183 -> 6.57 | U183: 0 | V183: 0 | W183: 6.57 | X183: 0 | Y183: 10.5 | Z183: 3.93
A184: 172 | B184: ПС 110/35/10 кВ Долгоруково | C184: 6,3+10 | D184: 16.3 | E184: =E185+E186 -> 6.37 | F184: =F185+F186 -> 4.57 | H184: 1.8 | I184: 0 | J184: =6.3*1.05 -> 6.615 | K184: 4.815 | L184: =MIN(K184:K186) -> 4.815 | M184: открыт | P184: 172 | Q184: ПС 110/35/10 кВ Долгоруково | R184: 6,3+10 | S184: =S185+S186 -> 0.636 | T184: =T185+T186 -> 7.006 | U184: =U185+U186 -> 4.57 | W184: 2.436 | X184: 0 | Y184: 6.615 | Z184: 4.179 | AA184: =MIN(Z184:Z186) -> 4.179 | AB184: открыт
B185: Ном. Мощность СН, МВА | C185: 6,3+10 | E185: 4.18 | F185: 2.9 | G185: 45 | H185: 1.28 | I185: 0 | J185: =6.3*1.05 -> 6.615 | K185: 5.335 | N185: 0.94 | Q185: Ном. Мощность СН, МВА | R185: 6,3+10 | S185: =S14+S11+S87+S85+S70+S71+S82 -> 0.546 | T185: =S185+E185 -> 4.726 | U185: 2.9 | V185: 45 | W185: 1.826 | X185: 0 | Y185: 6.615 | Z185: 4.789
B186: Ном. мощность НН, МВА | C186: 6,3+10 | E186: 2.19 | F186: 1.67 | G186: 140 | H186: 0.52 | I186: 0 | J186: =6.3*1.05 -> 6.615 | K186: 6.095 | N186: 0.95 | Q186: Ном. мощность НН, МВА | R186: 6,3+10 | S186: 0.09 | T186: =S186+E186 -> 2.28 | U186: 1.67 | V186: 140 | W186: 0.61 | X186: 0 | Y186: 6.615 | Z186: 6.005
A187: 173 | B187: ПС 110/35/10 кВ Волово | C187: 10+10 | D187: 20 | E187: =E188+E189 -> 4.47 | F187: =F188+F189 -> 1.97 | H187: 2.5 | I187: 0 | J187: 10.5 | K187: 8 | L187: =MIN(K187:K189) -> 8 | M187: открыт | P187: 173 | Q187: ПС 110/35/10 кВ Волово | R187: 10+10 | S187: =S188+S189 -> 1.28 | T187: =T188+T189 -> 5.75 | U187: =U188+U189 -> 1.97 | W187: 3.78 | X187: 0 | Y187: 10.5 | Z187: 6.72 | AA187: =MIN(Z187:Z189) -> 6.72 | AB187: открыт
B188: Ном. Мощность СН, МВА | C188: 10+10 | E188: 2.02 | F188: 1.8 | G188: 60 | H188: 0.22 | I188: 0 | J188: 10.5 | K188: 10.28 | N188: 0.88 | Q188: Ном. Мощность СН, МВА | R188: 10+10 | T188: =S188+E188 -> 2.02 | U188: 1.8 | V188: 60 | W188: 0.22 | X188: 0 | Y188: 10.5 | Z188: 10.28
B189: Ном. мощность НН, МВА | C189: 10+10 | E189: 2.45 | F189: 0.17 | G189: 120 | H189: 2.28 | I189: 0 | J189: 10.5 | K189: 8.22 | N189: 0.91 | Q189: Ном. мощность НН, МВА | R189: 10+10 | S189: 1.28 | T189: =S189+E189 -> 3.73 | U189: 0.17 | V189: 120 | W189: 3.56 | X189: 0 | Y189: 10.5 | Z189: 6.94
A190: 174 | B190: ПС 110/35/10 кВ Измалково | C190: 10+10 | D190: 20 | E190: =E191+E192 -> 5.25 | F190: =F191+F192 -> 0.82 | H190: 4.43 | I190: 0 | J190: 10.5 | K190: 6.07 | L190: =MIN(K190:K192) -> 6.07 | M190: открыт | P190: 174 | Q190: ПС 110/35/10 кВ Измалково | R190: 10+10 | S190: =S191+S192 -> 2.913 | T190: =T191+T192 -> 8.163 | U190: =U191+U192 -> 0.82 | W190: 7.343 | X190: 0 | Y190: 10.5 | Z190: 3.157 | AA190: =MIN(Z190:Z192) -> 3.157 | AB190: открыт
B191: Ном. Мощность СН, МВА | C191: 10+10 | E191: 1.65 | F191: 0.8 | G191: 30 | H191: 0.85 | I191: 0 | J191: 10.5 | K191: 9.65 | N191: 0.91 | Q191: Ном. Мощность СН, МВА | R191: 10+10 | S191: =S81+S77+S16+S17 -> 0.063 | T191: =S191+E191 -> 1.713 | U191: 0.8 | V191: 30 | W191: 0.913 | X191: 0 | Y191: 10.5 | Z191: 9.587
B192: Ном. мощность НН, МВА | C192: 10+10 | E192: 3.6 | F192: 0.02 | G192: 90 | H192: 3.58 | I192: 0 | J192: 10.5 | K192: 6.92 | N192: 0.92 | Q192: Ном. мощность НН, МВА | R192: 10+10 | S192: 2.85 | T192: =S192+E192 -> 6.45 | U192: 0.02 | V192: 90 | W192: 6.43 | X192: 0 | Y192: 10.5 | Z192: 4.07
A193: 175 | B193: ПС 110/35/10 кВ Гороховская | C193: 16+16 | D193: 32 | E193: =E194+E195 -> 12.72 | F193: =F194+F195 -> 1.886 | H193: 10.834 | I193: 0 | J193: =16*1.05 -> 16.8 | K193: 5.966 | L193: =MIN(K193:K195) -> 5.966 | M193: открыт | P193: 175 | Q193: ПС 110/35/10 кВ Гороховская | R193: 16+16 | S193: =S194+S195 -> 4.55 | T193: =T194+T195 -> 17.27 | U193: =U194+U195 -> 1.886 | W193: 15.384 | X193: 0 | Y193: 16.8 | Z193: 1.416 | AA193: =MIN(Z193:Z195) -> 1.416 | AB193: открыт
B194: Ном. Мощность СН, МВА | C194: 16+16 | E194: 9.03 | F194: 1.4 | G194: 30 | H194: 7.63 | I194: 0 | J194: =16*1.05 -> 16.8 | K194: 9.17 | N194: 0.89 | Q194: Ном. Мощность СН, МВА | R194: 16+16 | S194: =S72+S75+S80+S61+S83+S69+S78 -> 2.09 | T194: =S194+E194 -> 11.12 | U194: 1.4 | V194: 30 | W194: 9.72 | X194: 0 | Y194: 16.8 | Z194: 7.08
B195: Ном. мощность НН, МВА | C195: 16+16 | E195: 3.69 | F195: 0.486 | G195: 60 | H195: 3.204 | I195: 0 | J195: =16*1.05 -> 16.8 | K195: 13.596 | N195: 0.95 | Q195: Ном. мощность НН, МВА | R195: 16+16 | S195: 2.46 | T195: =S195+E195 -> 6.15 | U195: 0.486 | V195: 60 | W195: 5.664 | X195: 0 | Y195: 16.8 | Z195: 11.136
A196: 176 | B196: ПС 110/35/10 кВ Донская | C196: 10+10 | D196: 20 | E196: =E197+E198 -> 6.73 | F196: =F197+F198 -> 3.018 | H196: 3.712 | I196: 0 | J196: 10.5 | K196: 6.788 | L196: =MIN(K196:K198) -> 6.788 | M196: открыт | P196: 176 | Q196: ПС 110/35/10 кВ Донская | R196: 10+10 | S196: =S197+S198 -> 1.362 | T196: =T197+T198 -> 8.092 | U196: =U197+U198 -> 3.018 | W196: 5.074 | X196: 0 | Y196: 10.5 | Z196: 5.426 | AA196: =MIN(Z196:Z198) -> 5.426 | AB196: открыт
B197: Ном. Мощность СН, МВА | C197: 10+10 | E197: 3.83 | F197: 3 | G197: 30 | H197: 0.83 | I197: 0 | J197: 10.5 | K197: 9.67 | N197: 0.89 | Q197: Ном. Мощность СН, МВА | R197: 10+10 | S197: =S94+S90+S20 -> 0.172 | T197: =S197+E197 -> 4.002 | U197: 3 | V197: 30 | W197: 1.002 | X197: 0 | Y197: 10.5 | Z197: 9.498
B198: Ном. мощность НН, МВА | C198: 10+10 | E198: 2.9 | F198: 0.018 | G198: 60 | H198: 2.882 | I198: 0 | J198: 10.5 | K198: 7.618 | N198: 0.9 | Q198: Ном. мощность НН, МВА | R198: 10+10 | S198: 1.19 | T198: =S198+E198 -> 4.09 | U198: 0.018 | V198: 60 | W198: 4.072 | X198: 0 | Y198: 10.5 | Z198: 6.428
A199: 177 | B199: ПС 110/35/10 кВ Лебедянь | C199: 16+16 | D199: 32 | E199: =E200+E201 -> 14.13636364 | F199: =F200+F201 -> 11 | H199: 3.136363636 | I199: 0 | J199: =16*1.05 -> 16.8 | K199: 13.66363636 | L199: =MIN(K199:K201) -> 13.66363636 | M199: открыт | P199: 177 | Q199: ПС 110/35/10 кВ Лебедянь | R199: 16+16 | S199: =S200+S201 -> 3.646 | T199: =T200+T201 -> 17.78236364 | U199: =U200+U201 -> 11 | W199: 6.782363636 | X199: 0 | Y199: 16.8 | Z199: 10.01763636 | AA199: =MIN(Z199:Z201) -> 10.01763636 | AB199: открыт
B200: Ном. Мощность СН, МВА | C200: 16+16 | E200: 6.5 | F200: 6 | G200: 60 | H200: 0.5 | I200: 0 | J200: =16*1.05 -> 16.8 | K200: 16.3 | N200: 0.87 | Q200: Ном. Мощность СН, МВА | R200: 16+16 | S200: =S100+S119+S101+S114 -> 1.556 | T200: =S200+E200 -> 8.056 | U200: 6 | V200: 60 | W200: 2.056 | X200: 0 | Y200: 16.8 | Z200: 14.744
B201: Ном. мощность НН, МВА | C201: 16+16 | E201: 7.636363636 | F201: 5 | G201: 120 | H201: 2.636363636 | I201: 0 | J201: =16*1.05 -> 16.8 | K201: 14.16363636 | N201: 0.96 | Q201: Ном. мощность НН, МВА | R201: 16+16 | S201: 2.09 | T201: =S201+E201 -> 9.726363636 | U201: 5 | V201: 120 | W201: 4.726363636 | X201: 0 | Y201: 16.8 | Z201: 12.07363636
... 71 more rows

Sheet Свод тек. дефицит
A1: Перечень закрытых центров питания ОАО "МРСК Центра" по итогам зимнего замера максимума нагрузки 2011 г. (текущий дефицит мощности).
A2: № п/п | B2: Наименование объекта центра питания, класс напряжения | C2: Установленная мощность трансформаторов Sуст. с указанием их количества, шт/ МВА | E2: Текущий дефицит
A3: Липецкэнерго
A4: 1 | B4: ПС 110/10кВ Лев Толстой | C4: 10 | D4: 10 | E4: -0.2
A5: 2 | B5: ПС 110/10 кВ Двуречки | C5: 6.3 | D5: 6.3 | E5: -1.5
A6: 3 | B6: ПС 35/10 кВ Веселое | C6: 2.5 | D6: 2.5 | E6: -0.04
A7: 4 | B7: ПС 35/10 кВ Кр.Пальна | C7: 3.2 | D7: 3.2 | E7: -0.77
A8: 5 | B8: ПС 35/10 кВ Каменка | C8: 2.5 | D8: 2.5 | E8: -0.82
A9: 6 | B9: ПС 35/10 кВ Красотыновка | C9: 2.5 | D9: 2.5 | E9: -0.18
A10: 7 | B10: ПС 35/10 кВ Озёрки | C10: 2.5 | D10: 2.5 | E10: -0.11
A11: 8 | B11: ПС 35/10 кВ Панкратовка | C11: 2.5 | D11: 2.5 | E11: -0.46
A12: 9 | B12: ПС 35/10 кВ Преображенье | C12: 2.5 | D12: 2.5 | E12: -0.41
A13: 10 | B13: ПС 35/10 кВ Яковлево | C13: 2.5 | D13: 2.5 | E13: -0.81
A14: 11 | B14: ПС 35/10 кВ Первомайская | C14: 2.5 | D14: 2.5 | E14: -0.54
A15: 12 | B15: ПС 35/10 кВ Каменная Лубна | C15: 2.5 | D15: 2.5 | E15: -0.05
A16: 13 | B16: ПС 35/10 кВ Знаменка | C16: 2.5 | D16: 2.5 | E16: -0.55
A17: 14 | B17: ПС 35/10 кВ Пиково | C17: 2.5 | D17: 2.5 | E17: -0.01
A18: 15 | B18: ПС 35/10 кВ Песковатка | C18: 1.6 | D18: 1.6 | E18: -0.39
A19: 16 | B19: ПС 35/6 кВ Новониколаевка | C19: 4 | D19: 4 | E19: -0.88
A20: 17 | B20: ПС 35/10 кВ Синдякино | C20: 2.5 | D20: 2.5 | E20: -0.22
A21: 18 | B21: ПС 35/10 кВ Курино | C21: 2.5 | D21: 2.5 | E21: -0.37
A22: 19 | B22: ПС 35/10 кВ Новодубовое | C22: 2.5 | D22: 2.5 | E22: -1.05
A23: 20 | B23: ПС 110/35/10 кВ Чаплыгин | C23: 6.3 | D23: 6.3 | E23: -1.45
A24: 21 | B24: ПС 35/10 кВ Задонск-сельск. | C24: 3,2+1,6 | D24: =3.2+1.6 -> 4.8 | E24: -0.24
A25: 22 | B25: ПС 35/6 кВ № 2 | C25: 1+1+1 | D25: =1+1+1 -> 3 | E25: -0.66
A26: 23 | B26: ПС 35/10 кВ Бутырки | C26: 5,6+4 | D26: =5.6+4 -> 9.6 | E26: -2.3
A27: 24 | B27: ПС 110/35 кВ Т-3 Гидрооборудование | C27: 31.5 | D27: 31.5 | E27: -2.38
A28: 25 | B28: ПС 110/35/10 кВ Казинка | C28: 16+16 | D28: =16+16 -> 32 | E28: -0.6
B29: Ном. Мощность СН, МВА | C29: 16+16
B30: Ном. мощность НН, МВА | C30: 16+16
A31: Итого текущий дефицит (зима) | C31: =SUM(D4:D28) -> 147.3 | E31: =SUM(E4:E30) -> -16.99

Sheet Свод ожид. дефицит
A1: Перечень закрытых центров питания ОАО "МРСК Центра" по итогам зимнего замера максимума нагрузки 2011 г. (ожидаемый дефицит мощности).
A2: № п/п | B2: Наименование объекта центра питания, класс напряжения | C2: Установленная мощность трансформаторов Sуст. с указанием их количества, шт/ МВА | E2: Ожидаемый дефицит
A3: Липецкэнерго
A4: 1 | B4: ПС 110/10кВ Лев Толстой | C4: 10 | D4: 10 | E4: -1
A5: 2 | B5: ПС 110/10 кВ Двуречки | C5: 6.3 | D5: 6.3 | E5: -2.4
A6: 3 | B6: ПС 35/10 кВ Веселое | C6: 2.5 | D6: 2.5 | E6: -0.06
A7: 4 | B7: ПС 35/10 кВ Кр.Пальна | C7: 3.2 | D7: 3.2 | E7: -1.29
A8: 5 | B8: ПС 35/10 кВ Каменка | C8: 2.5 | D8: 2.5 | E8: -1.32
A9: 6 | B9: ПС 35/10 кВ Красотыновка | C9: 2.5 | D9: 2.5 | E9: -0.18
A10: 7 | B10: ПС 35/10 кВ Озёрки | C10: 2.5 | D10: 2.5 | E10: -0.11
A11: 8 | B11: ПС 35/10 кВ Панкратовка | C11: 2.5 | D11: 2.5 | E11: -0.47
A12: 9 | B12: ПС 35/10 кВ Преображенье | C12: 2.5 | D12: 2.5 | E12: -0.45
A13: 10 | B13: ПС 35/10 кВ Яковлево | C13: 2.5 | D13: 2.5 | E13: -1.08
A14: 11 | B14: ПС 35/10 кВ Первомайская | C14: 2.5 | D14: 2.5 | E14: -0.56
A15: 12 | B15: ПС 35/10 кВ Каменная Лубна | C15: 2.5 | D15: 2.5 | E15: -0.11
A16: 13 | B16: ПС 35/10 кВ Знаменка | C16: 2.5 | D16: 2.5 | E16: -0.55
A17: 14 | B17: ПС 35/10 кВ Пиково | C17: 2.5 | D17: 2.5 | E17: -0.04
A18: 15 | B18: ПС 35/10 кВ Песковатка | C18: 1.6 | D18: 1.6 | E18: -0.39
A19: 16 | B19: ПС 35/6 кВ Новониколаевка | C19: 4 | D19: 4 | E19: -0.89
A20: 17 | B20: ПС 35/10 кВ Синдякино | C20: 2.5 | D20: 2.5 | E20: -0.27
A21: 18 | B21: ПС 35/10 кВ Курино | C21: 2.5 | D21: 2.5 | E21: -1.18
A22: 19 | B22: ПС 35/10 кВ Новодубовое | C22: 2.5 | D22: 2.5 | E22: -1.05
A23: 20 | B23: ПС 110/35/10 кВ Чаплыгин | C23: 6.3 | D23: 6.3 | E23: -2.06
A24: 21 | B24: ПС 110/10 кВ Кашары | C24: 2,5+6,3 | D24: =2.5+6.3 -> 8.8 | E24: -0.03
A25: 22 | B25: ПС 110/10 кВ Октябрьская | C25: 40+40 | D25: =40+40 -> 80 | E25: -4.2
A26: 23 | B26: ПС 110/10 кВ Университетская | C26: 40+40 | D26: =40+40 -> 80 | E26: -0.95
A27: 24 | B27: ПС 35/10 кВ Задонск-сельск. | C27: 3,2+1,6 | D27: =3.2+1.6 -> 4.8 | E27: -0.38
A28: 25 | B28: ПС 35/10 кВ Плоское | C28: 4+4 | D28: =4+4 -> 8 | E28: -0.37
A29: 26 | B29: ПС 35/10 кВ Яблоневое | C29: 2,5+2,5 | D29: =2.5+2.5 -> 5 | E29: -0.74
A30: 27 | B30: ПС 35/6 кВ № 2 | C30: 1+1+1 | D30: =1+1+1 -> 3 | E30: -0.75
A31: 28 | B31: ПС 35/10 кВ № 3 | C31: 2,5+2,5 | D31: =2.5+2.5 -> 5 | E31: -0.14
A32: 29 | B32: ПС 35/10 кВ Бутырки | C32: 5,6+4 | D32: =5.6+4 -> 9.6 | E32: -4.58
A33: 30 | B33: ПС 35/10 кВ Ярлуково | C33: 3,2+4 | D33: =3.2+4 -> 7.2 | E33: -0.38
A34: 31 | B34: ПС 35/10 кВ Матыра | C34: 4+3,2 | D34: =4+3.2 -> 7.2 | E34: -3.97
A35: 32 | B35: ПС 35/6 кВ Таволжанка | C35: 4+4 | D35: =4+4 -> 8 | E35: -1.56
A36: 33 | B36: ПС 35/10 кВ Борисовка | C36: 4+2,5 | D36: =4+2.5 -> 6.5 | E36: -1.38
A37: 34 | B37: ПС 35/10 кВ Введенка | C37: 4+4 | D37: =4+4 -> 8 | E37: -4.96
A38: 35 | B38: ПС 35/10 кВ Частая Дубрава | C38: 2,5+2,5 | D38: =2.5+2.5 -> 5 | E38: -0.44
A39: 36 | B39: ПС 35/10 кВ Троицкая | C39: 2,5+4 | D39: =2.5+4 -> 6.5 | E39: -0.24
A40: 37 | B40: ПС 35/6 кВ Птицефабрика | C40: 4+4 | D40: =4+4 -> 8 | E40: -0.41
A41: 38 | B41: ПС 110/35/10 кВ Компрессорная | C41: 16+16 | D41: =16+16 -> 32 | E41: -3.08
B42: Ном. Мощность СН, МВА | C42: 16+16
B43: Ном. мощность НН, МВА | C43: 16+16
A44: 39 | B44: ПС 110/35/6 кВ Бугор | C44: 63+15+25 | D44: =63+15+25 -> 103 | E44: -4.05
B45: Ном. Мощность СН, МВА | C45: 63+15+25
B46: Ном. мощность НН, МВА | C46: 63+15+25
A47: 40 | B47: ПС 110/35 кВ Т-3 Гидрооборудование | C47: 31.5 | D47: 31.5 | E47: -2.9
A48: 41 | B48: ПС 110/35/10 кВ Казинка | C48: 16+16 | D48: =16+16 -> 32 | E48: -5.41
B49: Ном. Мощность СН, МВА | C49: 16+16
B50: Ном. мощность НН, МВА | C50: 16+16
A51: 42 | B51: ПС 110/35/6 кВ Новая Деревня | C51: 10+6,3 | D51: =10+6.3 -> 16.3 | E51: -0.42
B52: Ном. Мощность СН, МВА | C52: 10+6,3
B53: Ном. мощность НН, МВА | C53: 10+6,3
A54: Итого ожидаемый дефицит (зима) | C54: =SUM(D4:D51) -> 541.8 | E54: =SUM(E4:E53) -> -56.8
